Workbook

Sheet Sheet1
B1: EKITI STATE NIGERIA
B2: MEDIUM TERM SECTORAL STRATEGY (MTSS) 2023-2025
B3: PILLAR 1: GOVERNANCE
B4: 1 | C4: 2 | D4: 3 | E4: 4 | F4: 5 | G4: 6 | H4: 7 | I4: 8 | J4: 9 | K4: 10 | L4: 11 | M4: 12 | N4: 13
G5: PROJECTED COST (₦) | J5: OUTPUT | K5: EXPECTED | M5: MTSS | N5: RESPONSIBLE
B6: GOALS | C6: OBJECTIVES | D6: INITIATIVES | E6: APPROVED 2022 MTSS ESTIMATES | F6: 2023 | G6: 2024 | H6: 2025 | I6: BASE YEAR 2022 | J6: TARGET | K6: OUTCOME | L6: KPIs | M6: CODE | N6: MDAs
B7: 1. Provide good governance, accountability, transparency and evidence based policy formulation and implementation for effective service delivery in accordance with Governance Cluster in SDP | C7: a. To provide basic, responsive policy, programmes for Public Service Reform, efficient service delivery and increase productivity on continual basis. | D7: i.) Provide household equipment for the Gov & Govt. house. ii.) Procure office safes, vehicle (security & utility), office furniture & communication equipment, ICT, video & camera, statistical equipment, essential working tools (laundry, kitchen, flushers, ladder, mowers etc) and motorcycles for MDAs and top Govt functionaries. | E7: 3100000000 | F7: 6997000000 | G7: 9822500000 | H7: 10887000000 | I7: Office furniture, essential working tools and vehicles provided. | J7: Outstanding of office furniture, essential working tools and vehicles provided and distributed. | K7: Prompt service delivery and incresead productivity. | L7: No and type of essential working tools and vehicles provided. | M7: 01-001 | N7: Deputy Gov office, GH&P, GAD, Office of Capacity Dev, MBEP, CSC, AG, MFED, CIA EKSTMA, SBS, SDGs, IRS, BPP, Electricity Board, EKSAA, Christian and Muslim Pilgrims Welfare Board and relevant MDAs.
D8: ii) Computerize Government houses, MDAs etc; Digitalize & publicize govt activities & personnel matters; Value and insure Government assets | E8: 250000000 | F8: 1985000000 | G8: 2755000000 | H8: 3010000000 | I8: Preliminary activities on computerization of MDAs commenced. | J8: Government activities, houses and offices of MDAs computerized | K8: Better documentation of government activities. | L8: % computerized Government offices and activities. | M8: 01-002 | N8: GAD, MFED, AG, MBEP, BICT, CIA, BPP, ESTAB, SBS, BC and other relevant MDAs.
D9: iii) Construct, rehabilitate and maintain Governor and deputy Governor's office, old Governor's office, dilapidated MDAs office complexes, treasury cash offices and other Government facilities (Ekiti house, Lagos and Governor & Deputy Gov's lodge, Abuja etc). | F9: 1926000000 | G9: 1923000000 | H9: 2298000000 | I9: Government facilities constructed and rehabilitated. | J9: More government facilities constructed and rehabilitated. | K9: Conducive environment and better facilities provided. | L9: No of facilities rehabilitated and constructed. | M9: 01-003 | N9: Deputy Gov office, Ministry of Public Utility (MIPU), GAD, MFED, AG, MLGA, Office of the State Auditor General (SAG), Audit Service Commission (ASC), MWT and other relevant MDAs.
D10: iv) Track Government vehicles & projects; Create robust website and provide internet services for better networking among MDAs. | E10: 150000000 | F10: 1560000000 | G10: 1560000000 | H10: 1860000000 | I10: Government vehicles tracked and internet facilities provided. | J10: Government vehicles tracked and internet facilities provided for MDAs. | K10: i. Improve security and internet facilities. ii. Other government assets well protected. | L10: i. No of vehicles tracked. ii. No of staff with access to internet services. | M10: 01-004 | N10: GAD, BOTSD BICT, BTS and other relevant MDAs.
D11: v) Clean, fumigate, landscape and beautify Governor office, Government house and the entire state environment | E11: 50000000 | F11: 25000000 | G11: 40000000 | H11: 65000000 | I11: Progressive fumigation, beautification and landscaping carried out. | J11: Governor office and Government house and the entire state fumigated and beautified. | K11: Conducive environment and facilities provided. | L11: Percentage of the expected work done. | M11: 01-005 | N11: Government House & Protocol (GH&P), GAD and other relevant MDAs
C12: b. To provide befitting lodge for Governor/Deputy Governor at Abuja, Ado and modern Offices for MDAs for Public Servants to enhance conducive environment. | D12: i) Modernize govt house, data centre and MDAs; Provide solar power/ electrical equipment, insurance cover & purchase of 600KVA/120KVA generators, fire extinguishers & other fire fighting equipment for MDAs, Gov. office and data centre. | E12: 2500000000 | F12: 570000000 | G12: 644000000 | H12: 670500000 | I12: Generators and fire extinguishers for Government house and other MDAs procured. | J12: Generators and fire extinguishers procured and distributed to Government house and MDAs. | K12: i. Regular supply of electricity through solar power and generator. ii.Govt properties protected against fire. | L12: No and types of generators and fire extinguishers procured. | M12: 01-006 | N12: Deputy Gov office, GAD , BOTSD, The Judiciary, BICT, BSP, MIPU, Electricity Board, EKHASC and other relevant MDAs.
D13: ii) Furnish new Governor's office, Governor’s lodge and chalets. | F13: 520000000 | G13: 370000000 | H13: 410000000 | I13: New Governors lodge constructed. | J13: New Governors lodge consructed and furnished. | K13: Ekiti State image improved nationally. | L13: Report of work done and number of furniture provided. | M13: 01-007 | N13: GAD, MWT, Liason Office and other relevant MDAs
D14: iii) Construct game house & rehabilitate lodges. | F14: 500000000 | G14: 600000000 | H14: 800000000 | I14: Preliminary work on game house carried out. | J14: Outstanding work on game house completed. | K14: Essential facilities provided. | L14: No and quality of materials provided. | M14: 01-008 | N14: MWT, MIPU, GAD and other relevant MDAs.
C15: c. To coordinate / track implementation of govt plan, policy and 6 pillar prog. | D15: i) Compile and disseminate information to sensitize public on govt policy; Track the implementation of govt policies and review MDAs workplans regularly for best practices; Develop policy document and operational framework on Open Governance Practice | E15: 40000000 | F15: 61500000 | G15: 64500000 | H15: 67500000 | I15: Reports about MDAs performance produced. | J15: Monthly, quarterly and annual reports about MDAs performance produced and circulated. | K15: MDAs work in synergy for better performance. | L15: i. No of reports produced. ii. Availability of relevant data, information and work plans. | M15: 01-009 | N15: MBEP, GH&P, SBS , GAD, CSOs, BTS, Fiscal Responsibility Commission (FRC), SDGs Office, ODA and relevant MDAs.
D16: ii) Conduct M&E and relevant statistical survey, and review statistical master plan, law and other relevant documents for production, printing and dissemination to stakeholders. | E16: 3000000 | F16: 56000000 | G16: 61000000 | H16: 57000000 | I16: Preliminary works on review of statistical master plan commenced. | J16: Outstanding works on review of statistical master plan completed. | K16: MDAs operate in line with provision of State statistical law and master plan. | L16: No of statistical law and master plan produced and made available for use. | M16: 01-010 | N16: SBS, CPWB, MBEP, BTS, MIPU and relevant MDAs.
D17: (iii) Advocate & employ consultancy services (where necessary) to track Government activities and projects on regular basis | E17: 135000000 | F17: 237000000 | G17: 163000000 | H17: 172000000 | I17: Consultant hired for Government activities. | J17: Consultant hired for Government activities sustained. | K17: Government activities performed in line with established law. | L17: No of consultancy reports produced or tracked. | M17: 01-011 | N17: GAD, Office of Capacity Dev, BPP, MBEP, SBS, AG, MIPU and other relevant MDAs.
D18: iv) Establish state databank (Landlord-Tenant Registration) and capturing centre for Integrated Payroll System (IPS) and dissemination of integrated information system for budgeting and planning activities. | E18: 100000000 | F18: 125000000 | G18: 138000000 | H18: 265000000 | I18: Preliminary works on State data processing centre commenced. | J18: State data processing centre established. | K18: Improvement in data collection, collation, processing and dissemination achieved. | L18: i. No of data capturing centre established. ii. No of Staff with access to databank. | M18: 01-012 | N18: BRCD, AG, SBS, MBEP, State Audit, MLGA, BICT and other relevant MDAs.
D19: v)Procure ICT softwares/equipments; Train SBS, IRS staff and other relevant MDAs staff on use of electronic data collection for registration of vehicle; Automation of STB, Exco & vehicles and acquisition of electronic receipt application/hardware for printing in all LGAs.. | E19: 15000000 | F19: 58000000 | G19: 28500000 | H19: 35000000 | I19: SBS staff trained on electronic data collection | J19: SBS staff, revenue staff and all relevant MDAs staff trained on electronic data collection. | K19: State officers are better off in data management and control. | L19: i. Rate of officers proficiency in data management. ii. No and type of training conducted for E-data collection and revenue automation. | M19: 01-013 | N19: SBS, MFED, GAD, IRS, Cabinent and other relevant MDAs.
D20: vi) Procure vehicles and motorcycles for revenue officers, data collection, survey, field work & monitoring. | E20: 650000000 | F20: 1500000000 | G20: 2000000000 | H20: 2000000000 | I20: Vehicles and motorcycles for field work, monitoring and survey procured. | J20: More vehicles and motorcycles for field work, monitoring and survey procured and distributed. | K20: Statistical data carried out with speedy process. | L20: i. No and type of vehicles and motorcycles procured. ii. Report of fieldworks & surveys conducted. | M20: 01-014 | N20: SBS, EKSAA, GAD, MBEP and other relevant MDAs.
D21: vii) Provide advocacy and enabling environment for the operation and activities of SDGs, development partners and donors agencies in the State. | E21: 2000000 | F21: 33000000 | G21: 35000000 | H21: 37000000 | I21: Necessary logicstics made available for operations of donor assisted projects in the State. | J21: Essential and necessary provision made for funding and operations of donor assisted projects. | K21: i. New developmental initiatives introduced. ii. Sustainable growth and development in the State / LGAs achieved. | L21: i. No of development partners in the State. ii. No and type of donor’s intervention project & programme. | M21: 01-015 | N21: Governor office, MBEP, SBS other relevant MDAs.
C22: d. To build the capacity of public servant to drive State policies and programmes. | D22: i). Build the capacity of the procurement officers, civil servants, labour leaders and SIEC staff to drive policies & programmes of the government. | E22: 100000000 | F22: 160000000 | G22: 110000000 | H22: 160000000 | I22: Capacity of officers built. | J22: More officers capacity built. | K22: Improved service delivery across the public service. | L22: No of officers's capacity built. | M22: 01-016 | N22: ESTAB, Office of Capacity Dev, BSP, Human Capital Dev, GH&P, SIEC, BPP, Development Partners and other relevants MDAs.
D23: ii). Review and produce civil service rules & regulation for service delivery. | E23: 3500000 | F23: 11000000 | G23: 13000000 | H23: 15000000 | I23: Civil service rule reviewed. | J23: Civil service rule reviewed and publicized. | K23: Reduction in cases of indiscipline in the public service and improved service delivery. | L23: No of copies of the civil service rules document reviewed and circulated. | M23: 01-017 | N23: ESTAB, Civil Service Commission (CSC) and relevant MDAs.
D24: (iii) Conduct need assessment for the State public servants on annual basis; Train and recruit staff in all cadres for service delivery. | E24: 100000000 | F24: 276000000 | G24: 287500000 | H24: 109000000 | I24: Capacity needs and gaps of public servant identified. | J24: Capacity needs and gaps of public servant identified and given prompt attention. | K24: Improved output of public servant enhanced. | L24: No and category of public servant recruited and trained. | M24: 01-018 | N24: ESTAB, FRC, ASC, MBEP, SBS MFED,CSO and other relevant MDAs.
C25: e. To ensure community input in project identification & implementation; and provide support for CDAs. | D25: i.) Produce jingles, playlets & official gazette; Conduct public service forum, ministerial press briefing & media tour, village & town hall meeting with Community Development Association (CDAs) and assist in community development projects; Cover State Govt activities within and outside the State | E25: 90000000 | F25: 128000000 | G25: 115500000 | H25: 143000000 | I25: Stakeholders forum conducted. | J25: Community priority projects identified for implementation in annual budget. | K25: Better community project conception and development enhanced. | L25: No of community projects identified and implemented per annum | M25: 01-019 | N25: MLGCD, MBEP, MIVO, and relevant MDAs
D26: ii). Conduct periodic media programme on community development (E-Je-Ka-Jo-Se) and media chat with Mr. Governor | E26: 5000000 | F26: 50000000 | G26: 50000000 | H26: 20000000 | I26: Update of community development programme aired. | J26: Community development programme aired by mass media. | K26: Better community project established and developed. | L26: i. No of community projects identified and implemented per annum. ii. No of media programme on community development activities carried out. | M26: 01-020 | N26: GH&P, MLGA,, MBEP, relevant Departments from the Governor’s Office and relevant MDAs.
D27: iii). Comprehend community initiatives with cash and kind during community day celebration. | E27: 50000000 | F27: 250000000 | G27: 300000000 | H27: 500000000 | I27: CDAs initiatives captured. | J27: CDAs initiatives captured and implemented. | K27: Community development improved. | L27: No of community development project carried out. | M27: 01-021 | N27: MLGA, MBEP, relevant Depts from Governor’s office and MDAs.
B28: 2. Promote democratic governance, openness and accountability by building a virile judicial system to cater for the interest of citizenry | C28: a. To ensure all cases are expediently handled to bring crime rate and violence to zero level. | D28: i). Construct and renovate office accommodation with perimeter fence; tax offices, family court, court rooms and entrepreneurship centre. | E28: 60000000 | F28: 860000000 | G28: 1000000000 | H28: 850000000 | I28: Preliminary works on renovations carried out. | J28: Outstanding works on renovation of court rooms and other offices completed. | K28: Conducive environment provided. | L28: i. No of offices and court rooms renovated. ii. No and record of cases handled on quarterly basis. | M28: 01-022 | N28: JSC, FRC, IRS, MWT and relevant MDAs.
D29: ii). Provide adequate water supply and relevant logistic support for the Judicial Arm and Legislative Arm of Government. | E29: 600000000 | F29: 700000000 | G29: 700000000 | H29: 900000000 | I29: Water supply and logistics provided. | J29: Boreholes provided and other relevant logistics supports made available. | K29: More efficient administration of justice and legislation provided. | L29: No of relevants logistics provided. | M29: 01-023 | N29: JSC, EKHASC and other relevant MDAs.
D30: iii) Procure security equipment for Government house and other essential working tools for effective performance of Judicials, Min of Justice and State customary court of appeal. | E30: 85000000 | F30: 300000000 | G30: 350000000 | H30: 400000000 | I30: Security equipment procured. | J30: Security equipment and essential tools procured and distributed. | K30: Conducive atmosphere, working equipment and utility vehicles provided. | L30: No and type of equipment purchased. | M30: 01-024 | N30: GH&P, Office of Public Defender, Cabinent and Special Service and relevant MDAs.
D31: iv) Procure law books and print law reports for the administration of Justice. | E31: 50000000 | F31: 140000000 | G31: 165000000 | H31: 190000000 | I31: Law books and law reports procured. | J31: Outstanding law books and reports provided. | K31: More efficient administration of justice provided. | L31: No of law books & reports provided. | M31: 01-025 | N31: Min of Justice (MoJ), The Judiciary, Office of Public Defender and relevant MDAs
D32: v). Provide E-library and computerized government and judicial activities. | E32: 70000000 | F32: 160000000 | G32: 195000000 | H32: 227000000 | I32: Judiciary activities computerized. | J32: Judicial activities computerized and E-library established. | K32: Improved correspondence and security of document. | L32: Judiciary activities computerized, yes/no. | M32: 01-026 | N32: GH&P, MoJ, Office of Public Defender, SAG and relevant MDAs.
D33: vi). Train Judiciary staff on the use of ICT facilities and sensitize the public about its services. | E33: 5000000 | F33: 10000000 | G33: 15000000 | H33: 20000000 | I33: Judicial staff trained on ICT. | J33: Outstanding Judicial staff trained on ICT. | K33: Legal research promoted and quick access to the internet available. | L33: No of staff trained on ICT. | M33: 01-027 | N33: MoJ, Office of Public Defender and relevant MDAs
D34: vii) Review of all Laws of Ekiti State, Produce compendium of appropriation Laws of Ekiti State from 1999 till date and train for research and development of activities of the Commission | E34: 306000000 | F34: 346000000 | G34: 346000000 | H34: 346000000 | I34: Existing Ekiti State laws reviewed. | J34: Ekiti State laws reviewed and justice week conducted. | K34: Quick delivery of judgment and rullings. | L34: No of law book available and report of Justice week available. | M34: 01-028 | N34: MoJ, Office of Public Defender, Law Reform Comm. and relevant MDAs.
D35: viii) Secure the service of legal personnel conversant with law to facilitate dispute resolutions without recourse to law courts. | E35: 25000000 | F35: 25000000 | G35: 25000000 | H35: 25000000 | I35: Competent consultants on security and public service secured. | J35: More competent consultants on security and public service secured. | K35: Dispensation of justice improved and harmonious resolution of conflicts achieved. | L35: No of legal personnel and consultants service secured. | M35: 01-029 | N35: MoJ, Office of Public Defender and others relevant MDAs
D36: ix) Conduct credible LGAs election and make provision for litigation. | E36: 200000000 | F36: 900000000 | G36: 400000000 | H36: 950000000 | I36: Credible LGAs election conducted. | J36: Credible LGAs election conducted and litigation on LGAs election matter disposed off. | K36: Democratic institution put in place in all the LGAs. | L36: % decrease in court litigation on LGAs election matters. | M36: 01-030 | N36: Governor’s Office, MLGA, SIEC and others relevant MDAs
D37: x) Conduct town hall meetings, wall painting & public enlightenment on printing and electronic media on social vices, moral value, Covid 19, citizens rights to vote and avoid violence before, during and after election. | E37: 10000000 | F37: 47000000 | G37: 17500000 | H37: 62000000 | I37: Violence reduction awareness organized in LGAs. | J37: Violence reduction awareness organized on right to vote in LGAs. | K37: Violence reduced through public enlightenment by various media. | L37: % change in people's perception on election matters. | M37: 01-031 | N37: Political and Inter party Relation, MLGA, MIVO and others relevant MDAs
C38: b. To coordinate day-to-day reconciliatory processes on chieftaincy and political matters. | D38: xi) Organize meeting, retreats/seminars for the royal fathers, the elected chairmen and councillors on reconcillatory processes for chieftaincy and political matters. | E38: 6000000 | F38: 61000000 | G38: 57000000 | H38: 53000000 | I38: Retreat organised for royal fathers, LG chairmen and councillors. | J38: Retreat organised for royal fathers, LG chairmen and councillors sustained. | K38: Corporate governance in the grassroot established. | L38: No of workshop and retreats organised. | M38: 01-032 | N38: Bureau of Chieftaincy Affairs, SBS, MLGA, MBEP, 16 LGAs and other relevant MDAs.
D39: xii) Conduct field tracing and demarcation of State and LGAs boundaries and interstate and infrastructure boundary | E39: 25000000 | F39: 26000000 | G39: 33000000 | H39: 25000000 | I39: Provisional demarcation of various boundaries carried out. | J39: Verification and demarcation of disputed boundaries carried out. | K39: Reduction in boundary disputes. | L39: No of demarcation exercise carried out. | M39: 01-033 | N39: Boundary Commission, Surv Gen, GAD and relevant MDAs.
D40: xiii) Procure modern digital survey instrument and boundary verification equipment to produce map & documents of disputed areas. | E40: 20000000 | F40: 36000000 | G40: 38000000 | H40: 55000000 | I40: Digital boundary verification equipment procured. | J40: Maps and plans produced for resolution of boundaries dispute. | K40: Effective and quick delivery of boundary dispute and reduction in cases of disputed areas. | L40: i. No of boundary equipment procured. ii. No of documents, plans & maps provided. | M40: 01-034 | N40: Boundary Commission (BC), Office of Surveyor Gen and other relevant MDAs.
C41: c. To ensure prompt payment of gratuities and pension to all pensioners. | D41: i) Establish pension outfit and ICT infrastructure to ensure prompt release and payment of fund: Provide pension processing document; Monitor the registration of new participant of contributory pension scheme and payment of pension liability and death gratuity. | E41: 3500000 | F41: 215000000 | G41: 201000000 | H41: 247000000 | I41: i. About 30% initial arrears of pension and gratuity settled. ii. Gratuities and pensions under DBS paid promptly. | J41: i. Final arrears of pension and gratuity settled. ii. Final Gratuities and pensions under DBS paid promptly. | K41: i. Social security for the pensioners improved. ii. Improvement in the life style of pensioners. | L41: Records of payment of pensioners and total gratuity paid. | M41: 01-035 | N41: PENCOM, PTAD, MBEP, ESTAB and other relevant MDAs
D42: ii) Organize seminal for retiring officers & facilitate payment of 5% contribution to redeemable retirement fund and group insurance. | E42: 70000000 | F42: 188000000 | G42: 168000000 | H42: 170000000 | I42: Opening of insurance policy and opening of RRF account with CBN carried out. | J42: Opening of insurance policy and opening of RRF account with CBN sustained. | K42: Insurance policies available. | L42: No of insurance premium received. | M42: 01-036 | N42: PENCOM, PTAD, GAD, MBEP and other relevant MDAs.
D43: iii) Establish institute of governance and civil service club house; Conduct South west HOS’s summit and civil service week. | E43: 20000000 | F43: 3500000 | G43: 3000000 | H43: 3000000 | I43: Establishment of governance institute initiated. | J43: Governance institute established and Integration of South west public service assured. | K43: Institutes of government work in synergy. | L43: No of public officers trained in the institute. | M43: 01-037 | N43: Office of the Head of Service, ESTAB, BTS and other relevant MDAs.
B44: 3. Enhance participatory governance, openness, transparency and accountability | C44: To bring governance closer to the people at the grassroots and allow the impact of the legislators felt through constituency projects. | D44: i) Organize sensitization programme on community participation in governance and development in the 16 LGAs. | E44: 95000000 | F44: 25000000 | G44: 26000000 | H44: 190000000 | I44: Sensitization programme on community participation in development organized. | J44: Sensitization workshop established. | K44: Peaceful coexistence among the LGAs. | L44: No of LGAs sensitized and number of workshop carried out. | M44: 01-038 | N44: EKHA, MLGA, BRCD and relevant MDAs.
D45: (ii) Establish legislative loan board & legislative research and documentation centre. | E45: 55000000 | F45: 50000000 | G45: 20000000 | H45: 10000000 | I45: Approval on establishment of legistative research and document control gotten. | J45: Legistative research and document centre established. | K45: The State democratic system further strengthened. | L45: i. No of retreats and legislative parleys organized. ii. Centre of legislative research documentations established Yes/No | M45: 01-039 | N45: EKHA, EKHASC and other relevant MDAs.
D46: (iii) Host regional parliamentary conference in Ekiti State. | E46: 15000000 | F46: 55000000 | G46: 20000000 | H46: 25000000 | I46: Works on regional parliamentary commenced. | J46: Works on regional parliamentary commenced and regional Parliament conference hosted. | K46: Democratic experiences shared among regional parliament. | L46: No of reports from the regional conference. | M46: 01-040 | N46: EKHA, MBEP, GAD and other relevant MDAs.
D47: iv) Sensitize and mobilize stakeholders on the implementation and effects of FRC laws and other laws. | E47: 5500000 | F47: 5200000 | G47: 6000000 | H47: 7000000 | I47: Sensitization carried out on the importance of new and existing Ekiti State laws. | J47: Importance of new and existing Ekiti State laws sustained. | K47: Stakeholders get a better understanding of the laws passed by the HoA and FRC. | L47: No of Sensitization meeting organised. | M47: 01-041 | N47: EKHA, FRC, Office of Head of Service and other relevant MDAs.
B48: 4. Ensure quick passage of people oriented bills and encourage participation of relevant stakeholders in law making by sponsoring relevant private bills. | C48: a. To enhance effective publicity and coverage of House of Assembly for masses to enjoy dividends of democracy. | D48: i) Re-open printing press to print and produce relevant document for public benefit. | E48: 10000000 | F48: 15000000 | G48: 11000000 | H48: 14000000 | I48: Production team established. | J48: Weekly news and letter produced for public benefit. | K48: i. Public has access to proceedings and deliberations of the House of Assembly and FRC laws. ii. Adequate public enlightenment and participatory democracy enhanced. | L48: No of printed law and newsletters circulated to the public. | M48: 01-042 | N48: Government Printing Press, MIVO, EKHA, EKHASC and other relevant MDAs.
D49: ii.) Procure, generating set, digital recording equipment and other essential items (working tools & vehicles) for EKHA and EKHASC | E49: 380000000 | F49: 590000000 | G49: 170000000 | H49: 100000000 | I49: Digital recording equipment and essential working tools for EKHA and EKHASC procured. | J49: More digital recording equipment and essential working tools for EKHA and EKHASC procured. | K49: i. Reduction in loss of vital information during proceedings. ii. Improved coverage and publicity of the HoA activities. | L49: i. Level of coverage of HoA activities. ii. No & type of digital recording and essential items procured. | M49: 01-043 | N49: EKHA, EKHASC and other relevant MDAs
C50: b. To make Hon. members and staff of Ekiti State House of Assembly ICT compliant. | D50: i) Establish a resource centre & functional website for FRC and EKHA. Organize ICT training for Hon. members and staff. | E50: 20000000 | F50: 20000000 | G50: 10000000 | H50: 10000000 | I50: Hon. members and staff of EKHA trained on ICT. | J50: ICT training for Hon. members and staff of EKHA sustained and functional website established. | K50: Quick dissemination of information and activities HoA through internet. | L50: i. No of officers and House of Assembly members trained. ii. No and types of training organized. | M50: 01-044 | N50: EKHA EKHASC and other relevant MDAs.
D51: ii) Procure office equipment, essential law books & for the legislatures uses. | E51: 50000000 | F51: 100000000 | G51: 55000000 | H51: 30000000 | I51: Some legislative books and essential office equipment /furniture procured. | J51: Outstanding law books and essential office equipment and furniture procured. | K51: Availability of conducive environment for legislature. | L51: No and types of books and equipments procured. | M51: 01-045 | N51: EKHA, EKHASC and other relevant MDAs.
D52: iii) Procure and install ICT facilities in the House of Assembly, Assembly Commission and other government agencies. | E52: 7000000 | F52: 18000000 | G52: 11000000 | H52: 5000000 | I52: HoA workforce and Hon. members exposed to ICT facilities. | J52: Outstanding HoA workforce and other members of the Commission exposed to ICT facilities. | K52: i. HoA enjoy regular ICT facilities. ii. Improvement in service delivery in the HoA. | L52: No of Hon. members that were ICT compliance. | M52: 01-046 | N52: EKHA, EKHASC, and other relevant MDAs.
C53: c. To enhance effective and efficient performance of legislature | D53: i) Develop community data base & embark on community development project in all constituencies of the State. | E53: 260000000 | F53: 341500000 | G53: 262500000 | H53: 263500000 | I53: Sensitisation on community development projects carried out in all constituencies of the State. | J53: Community development projects implemented in all constituencies of the State. | K53: Improvement of infrastructural facilities to communities. Discouragement in Rural-Urban Drift | L53: No of constituency projects implemented by EKHA. | M53: 01-047 | N53: EKHA, MBEP, BRCD and other relevant MDAs. MLGA and other relevant MDAs.
D54: ii) Construct new administrative blocks, new legislative quarters and renovate assembly complex and EKHASC. | E54: 350000000 | F54: 370000000 | G54: 160000000 | H54: 55000000 | I54: Preliminary works on new administrative block, legislative quarters and assembly complex concluded. | J54: i. Administrative blocks and legislative quarters provided. ii. Assembly complex renovated. | K54: Legislature productivity enhanced. | L54: No of administrative blocks built and assembly complex renovated. | M54: 01-048 | N54: EKHA, EKHASC and other relevant MDAs
D55: iii) Build the capacity of Admin, Account, Clinical officers, Hon. Members and EKHASC members and staff; Conduct promotion exercises for the staff. | E55: 250000000 | F55: 380000000 | G55: 285000000 | H55: 384000000 | I55: Capacity of legislators for law making and performance of oversight functions boosted. | J55: Capacity of legislators and other staff boosted. | K55: Better understanding of technical bills and laws by the legislators and staff. | L55: No of capacity building programmes organized and reports produced. | M55: 01-049 | N55: EKHA, EKHASC and other relevant MDAs.
D56: iv) Recruit staff into legislative service to fill available vacancies and train valuable numbers of staff | E56: 5000000 | F56: 10000000 | G56: 10000000 | H56: 10000000 | I56: Staff of EKHASC exposed to different training. | J56: About 350 officers employed by 2024 and over 200 staff of EKHASC exposed to different training. | K56: Improvement in the service delivery by the EKHASC. | L56: i. No of staff employed. ii. No of staff trained. | M56: 01-050 | N56: ESTAB, EKHASC and other relevant MDAs.
B57: 5. Create intellectual bank for policy formulation, program development, implementation and coordination. | C57: a.To ensure proper coordination of all donor assisted projects & programmes and support policy formulation for development in Ekiti State. | D57: i) Establish database for Ekiti State in line with NPC/SDP guidelines and conduct monitoring and evaluation visit to donor and federal govt. supported projects sites. | E57: 75000000 | F57: 40000000 | G57: 40000000 | H57: 40000000 | I57: Coordination meetings held with development partners. | J57: Follow up on visit to the project site and coordination meetings with development partners took place. | K57: Improved working relationship between State and DP. | L57: i. No of MOU and PIA signed. ii. List of ongoing donor assisted projects. | M57: 01-051 | N57: MBEP, SDGs, SBS, FRC, EKHASC and other relevant MDAs.
D58: ii) Identify and list the engaged DPs, IPS, MDAs and organize workshop and quarterly meetings with DPs, CSOs & NGOs etc. | E58: 12000000 | F58: 7500000 | G58: 6800000 | H58: 7000000 | I58: Quaterly meeting of MDAs staff & CSOs organized. | J58: i. Quaterly meeting organized and attended by MDAs staff as well as CSOs ii. Policy document for DPs produced. | K58: i. Effective management of donor’s projects and improved operative environment. ii. Welfare of citizen improved. | L58: i. No of workshops and seminars organized. ii. No of participants at the workshop. | M58: 01-052 | N58: CSOs, NGOs, MBEP, FRC, SDGs Office and other relevant MDAs.
D59: iii) Payment of GCCC on UNICEF, UNDP, CARES, USADF and other World Bank supported projects (EU, STWSSP, SDGs etc). | E59: 450000000 | F59: 3103000000 | G59: 1913000000 | H59: 1450000000 | I59: GCCC paid by the State Government. | J59: i) Support received on UNICEF, UNDP, SDGs, World Bank and other Donor’s Assisted Projects in the State. ii) Ekiti Youths employed and empowered by EU/ STWSSP and other assisted projects. | K59: Development within the State improved. | L59: i. No of projects supported and youth's engaged through development partner. ii. Amount of GCC paid for each projects and draw-downs from each DP. | M59: 01-053 | N59: MBEP, JCEA, PIU, MHHS , MLGA, EU, SDGs, EKCSDA, FCTO, MEDA, CARES and other relevant Stakeholders.
D60: iv) Host development summit in the State with relevant stakeholders within and outside the country. | E60: 5000000 | F60: 40000000 | G60: 100000000 | H60: 15000000 | I60: Approval for hosting development summit secured. | J60: Development summit hosted. | K60: Increase in the level of development. | L60: Report of development summit produced. | M60: 01-054 | N60: MBEP, MFED, DPs, DIASPORA and other relevant MDAs.
D61: v) State Debt Management office activities | E61: 3000000 | F61: 20000000 | G61: 20000000 | H61: 20000000 | I61: All necessary approval secured on functional Debt Mgt Office. | J61: Functional debt mgt office established. | K61: Improved debt management profile. | L61: Establishment of DMO, yes/no. | M61: 01-055 | N61: MBEP, MFED and other relevant MDAs.
D62: vi.) Pay leasehold on projects | E62: 100000000 | F62: 155000000 | G62: 15000000 | H62: 15000000 | I62: payment for lease projects secured. | J62: Projects through lease arrangement financed. | K62: Partners identified For PPP arrangements. | L62: i. No of development partners in the State ii. No and type of equipment for lease | M62: 01-056 | N62: MBEP, MFED, DPs, FIHL and other relevant MDAs.
C63: b. To promote democratic governance and scale up the participation of Ekiti in Diaspora in the development of the State. | D63: i) Map out Ekiti into groups for ease follow-up of federal & donors assisted projects located in the State. | E63: 20000000 | G63: 45000000 | H63: 55000000 | I63: Approval for data bank for State, Federal and Donors secured. | J63: Data bank for Ekiti State, Federal and donor’s assisted projects established. | K63: Reduction in communication gaps between government and the public particularly Ekiti in diaspora on government activities. | L63: No of MOUs for PPP investments signed and level of Ekiti in diasporas involved in developmental projects. | M63: 01-057 | N63: Governor’s Office (Political and Inter Party Relation), SDGs DP Office MRDSD, DIASPORA Office and other relevant MDAs.
D64: ii) Conduct Interactive session and meeting with Ekiti people in diaspora, political parties, development partners and other relevant stakeholders. | E64: 8000000 | F64: 20000000 | G64: 20000000 | H64: 20000000 | I64: Interractive session meeting approval secured. | J64: Interactive sessions and meetings between Mr Governor and Ekiti all over Nigeria and across the world held. | K64: Effective implementation of government 5 pillars programmes. | L64: Reports of interactive sessions and of Ekiti professional and groups identified across the world. | M64: 01-058 | N64: MBEP, SBS, MRDSD, MLGA, DIASPORA Office, DP and other relevant MDAs.
C65: c. To ensure independence of audit process, transparency, prudency and accountability as well as judicious utilization of public funds. | D65: i) Enforce the use of rules and regulations guiding government spending through regular auditing to block loopholes and wastages. | E65: 4500000 | F65: 52400000 | G65: 58300000 | H65: 75050000 | I65: Rules and regulation guiding government spending established. | J65: Reports of audited accounts produced and submitted to HoA. | K65: Prudent and judicious use of public funds in compliance with rules and regulations guiding government spending achieved. | L65: % increase in level of compliance with relevant rules, regulations and laws guiding government spending . | M65: 01-059 | N65: State Auditor General, Local Government Audit, Central internal Audit and other relevant MDAs.
D66: ii) Rehabilitate old/construct new office accomodation and establish State Audit Commission to moderate the activities of State and LGAs; Renovate outstation offices and conduct periodic check on all MDAs, parastatals and other relevant institutions in the State as part of audit monitoring. | E66: 30000000 | F66: 98000000 | G66: 144000000 | H66: 181000000 | I66: Preliminary works on establishment of State Audit Commission commenced. | J66: i. Report of audit and FRC checks on MDAs and other parastatals in the State produced. ii. Ekiti State Audit Commission established. | K66: Audit activities and performances improved. | L66: i. No of MDAs and institutions audited within the State. ii. State audit commission established Yes/No. | M66: 01-060 | N66: EKHA, CSC, FRS, State & LGAs Audit and other relevant MDAs.
D67: iii).Train Audit staff of State & Local Government on forensic auditing by 2025. | E67: 2500000 | F67: 25500000 | G67: 30000000 | H67: 35000000 | I67: Audit staff on forensic auditing trained. | J67: Audit staff on forensic auditing trained. | K67: Wastages and misuse of government assets reduced. | L67: i. No of audit staff trained on forensic auditing. ii. No of staffs trained on ICT. | M67: 01-061 | N67: State and Local Government Audits, ASC and other relevant MDAs.
D68: iv) Organize ICT training for audit & FRC staff on GL 07 and above. | E68: 12000000 | F68: 25500000 | G68: 28000000 | H68: 32500000 | I68: Audit officers & FRC officers on GL.07 and above trained on ICT. | J68: More audit & FRC officers on GL.07 and above trained on ICT. | K68: Capacity of audit officers and FRC staff enhanced. | L68: No of training organized for audit and FRC staff. | M68: 01-062 | N68: FRC, State and Local Government Audits and other relevant MDAs.
D69: v) Prepare, print and circulate annual audit manual, Auditor-General’s report, Audit Service Commission report and all other reports to stakeholders. | E69: 5700000 | F69: 16500000 | G69: 18000000 | H69: 29500000 | I69: Auditor General report produced for circulation. | J69: i. Auditor General report produced for circulation. ii. Auditor General report printed and circulated on annual basis. | K69: Improved transparency and accountability in use of public resources and reduction in the level of corruption. | L69: No of copies of Auditor General’s report printed and circulated. | M69: 01-063 | N69: State and Local Government Audits, ASC, FRC and other relevant MDAs
D70: vi) Print and circulate manual, handbook on the land & people of Ekiti State, reports/journals of government agencies and law & regulations. | E70: 4500000 | F70: 20000000 | G70: 19000000 | H70: 17000000 | I70: Reports of government agencies produced. | J70: Reports of government agencies produced and circulated. | K70: i. Reports of government agencies available. ii. Improved uniformity in the treatment of bids and proposals. | L70: i. No of reports available. ii.% of compliance with bidding procedures. | M70: 01-064 | N70: BPP, LGAG, FRC, ASC and other relevant MDAs
B71: 6. To put in place effective and efficient budgeting process to enhance transparency accountability, probity and timely service delivery | C71: a. Introduce concept of Integrated Research, Monitoring and Evaluation (IRM&E) in the State. | D71: i. Conduct M&E visit to Donor and Federal governent projects; Update market calender in Ekiti State & reveal the type of produce found in the State. | E71: 5000000 | F71: 12000000 | G71: 18500000 | H71: 20200000 | I71: IRM&E concept introduced in the State and E- budget system sustained with the provision of relevant software and staff capacity building. | J71: Training on IRM&E concept and E- budget system sustained. | K71: State economic performance improved. | L71: No of MDAs with E-budgeting facilities. | M71: 01-065 | N71: MBEP, FRC, SBS and relevant MDAs.
D72: ii) Strengthen the budget preparation and implementation process to support the State public finance management system and IPSAS | E72: 78000000 | F72: 150000000 | G72: 100000000 | H72: 120000000 | I72: Automated budget returns & inputs from MDAs sustained. | J72: Automated budget returns & inputs from MDAs which allow quick preparation and passage of the budget by the House of Assembly. | K72: E-budgeting & auditing system implemented in the State. PFM and IPSAS adopted in the State. | L72: % compliance level on IPSAS | M72: 01-066 | N72: MBEP, AG and relevant MDAs
D73: iii) Sustain the E–auditing budgeting system in Ekiti State with the provision of relevant software and training of key officers. | E73: 9500000 | F73: 55000000 | G73: 10000000 | H73: 12000000 | I73: E - auditing & budgeting system sustained. | J73: Continuos training of officers on E- auditing & budgeting | K73: E-auditing & budgeting storeware and programming implemented in the State | L73: Report of compliance on IPSAS software & programming | M73: 01-067 | N73: MBEP, AG and relevant MDAs
D74: iv) Facilitate activities of the State Economic Development Council to provide support for suitable economic growth and development | E74: 100000000 | F74: 850000000 | G74: 725000000 | H74: 730000000 | I74: EDC reconstituted and attention focused on revenue generation and private sector partnership | J74: EDC inputs for State development documented | K74: State economic growth & development enhanced IGR through technical advice of the EDC | L74: Ekiti State economy improved. | M74: 01-068 | N74: MBEP, AG and relevant MDAs
D75: v) Conduct Core Welfare Indicator Survey (CWIS), Multiple Indicator Cluster Survey (MICS), Integrated household/poverty measurement; and produce Annual Digest of Administrative Statistics such as (Agric, Health etc.). | E75: 38000000 | F75: 50000000 | G75: 40000000 | H75: 70000000 | I75: Preliminaries activities on Core Welfare Indicator Survey. Existence of MICS(5) 2017/18 | J75: Core Welfare Indicator and Multiple Indicator Cluster Surveys conducted by 2024 | K75: Evidence based planning enhanced. | L75: No of reports of CWIS and MICS produced. | M75: 01-069 | N75: SBS and relevant MDAs
D76: vi) Organized State Consultative Committee meeting on statistics and conduct survey on GDP and DHS as well as population projection and vital registration exercise including population census & community development statistics for Ekiti State. | E76: 12000000 | F76: 76500000 | G76: 46000000 | H76: 82000000 | I76: Survey on State GDP conducted and document on projected population of Ekiti by towns and villages produced. | J76: i. DHS document produced. ii. Record of births and death produced. iii. Survey on State GDP conducted and analysed. iv. Document on Projected population of Ekiti by towns and villages produced. | K76: State contribution to the economic growth of the nation improved. | L76: i. No of registered births and deaths. ii. No of State GDP conducted between 2021-2023. iii. Availability of DHS document (yes/No). | M76: 01-070 | N76: SBS, MBEP and other relevant MDAs
C77: b. To formulate macro economies policies on a regular basis for developmental planning at both State and LGAs. | D77: i). Review and update Ekiti State Development Strategy Plan Document [EDS] 2020-2022 document; and Produce, print & circulate new copies for use. | E77: 38000000 | F77: 75000000 | G77: 52000000 | H77: 55000000 | I77: A strategic planning document to guide economic growth and development produced in 2020 | J77: A strategic planning document to guide economic growth and development reviewed by 2024 | K77: Relative stability level of economic growth & development. | L77: No of copies of the EDS document produced and circulated. | M77: 01-071 | N77: MBEP, SBS, Governor’s Office and other relevant MDAs
D78: ii). Prepare Medium Term Expenditure Framework (MTEF) document for the State | E78: 13450000 | F78: 35000000 | G78: 25000000 | H78: 30000000 | I78: Existing Medium Term Expenditure Framework (MTEF) documents reviewed. | J78: Framework for annual budget implementation established. | K78: Improved budget and projects management among MDAs. | L78: No of copies of MTEF 2022 -2024 document. | M78: 01-072 | N78: MBEP , SBS, GAD and other relevant MDAs/Stakeholders
D79: iii) Place on internet, print and circulate copies of MTEF, tax & revenue form, souvenirs, number plates & relevant cards for use by MDAs, CSOs and Development Partners | E79: 25000000 | F79: 30000000 | G79: 30000000 | H79: 20000000 | I79: 500 copies of MTEF document produced and circulated by MBEP. Tax & revenue form and souvenirs produced by IRS. | J79: 1000 copies of MTEF document produced and circulated by MBEP. Tax & revenue form and souvenirs produced by IRS. | K79: Increase revenue by IRS. | L79: No of copies of MTEF 2022 -2024 document and tax forms produced. | M79: 01-073 | N79: MBEP, IRS, GAD and other MDAs/Stakeholders
D80: iv) Provide technical support for the preparation of LGAs developmental strategy and LGAs MTEF. | E80: 5000000 | F80: 30000000 | G80: 30000000 | H80: 30000000 | I80: Sound macro economic policies to guide planning and development of LGAs. | J80: Sound macro economic policies to guide planning and development of LGAs. - Evidence Based Strategic Planning available | K80: Improved budget and projects management among LGAs. | L80: 2022-2024 LGAs MTEF produced. Report of summit and other development planning meetings. | M80: 01-074 | N80: MBEP, SBS, MLGA, LGAs and other relevant MDAs
D81: v) Initiate/Coordinate strategic & development policies for the State LGAs. Attend meetings of SCDP, JPB and forum of PPRS in the State | E81: 10000000 | F81: 35000000 | G81: 20000000 | H81: 20000000 | I81: SCDP & JPB meeting held in line with NPC guidelines. | J81: SCDP & JPB meeting held in line with NPC guidelines. | K81: PPRS forum Established. | L81: Reports on activities of the summit of SCDP, JPB and forum of PPRS produced (Yes/No). | M81: 01-075 | N81: MBEP, SBS and all relevant MDAs
D82: vi) Conduct Economic Development Summit on or before 2023 | E82: 15000000 | F82: 65000000 | G82: 12000000 | H82: 10000000 | I82: Economic summit conducted. | J82: Economic summit report reviewed. | K82: Macro economic variables for economic growth determined. | L82: Reports of Economic Development Summit produced (Yes/No). | M82: 01-076 | N82: MBEP, MFED and all MDAs
D83: vii) Prepare & produce SDGs development strategies 2022-2026 and Ekiti State Development Plan (MTDP) 2022 -2031 in line with FGN, DP & DAWN strategic planning. | E83: 110000000 | F83: 135000000 | G83: 95000000 | H83: 106000000 | I83: MTDP produced for 2022– 2026 and development plan & vision document produced for Ekiti State | J83: MTDP produced for 2022– 2026 and development plan & vision document reviewed | K83: Improved plan and policy implemntation in the State | L83: Record & reports of MTDP, DP, MTEF, Budget and other documents available (Yes/No) | M83: 01-077 | N83: MBEP, SBS, SDGs Office, CBOs, NGOs, CSOs Donor Partners and all relevant MDAs
C84: c. To carry out impact assessment of government programmes & projects on citizenry | D84: i) Establish monitoring units in all LGAs; and Organize quarterly meeting with MDAs & LGAs on project implementation & performance | E84: 3000000 | F84: 30000000 | G84: 4400000 | H84: 4800000 | I84: Preliminary activities on establishment concluded on monitoring units in all LGAs | J84: Monitoring units in all LGAs established | K84: i. Guaranteed effective budgeting. ii.Capital projects implementation is enhanced among State and LGAs | L84: No of assessment reports of MDAs produced. | M84: 01-078 | N84: MBEP, PMC/PIU, SBS and all relevant MDAs
D85: ii) Develop new M&E template for capital project monitoring and establish PMIS for project coordination in the State | E85: 5000000 | F85: 45000000 | G85: 10000000 | H85: 10000000 | I85: i. Quarterly meetings with MDAs & LGAs on project implementation organised. ii. Information on all projects uploaded into PMIS. | J85: i. Quarterly meetings with MDAs & LGAs on project implementation organised. ii. Information on all projects uploaded into PMIS. | K85: Improved access to the annual M&E report. | L85: Type and functionability of the new M&E template developed. | M85: 01-079 | N85: MBEP, PMC/PIU SBS and all relevant MDAs
D86: iii) Access and track MTEF implementation and correlation with annual budget at both State and LGAs levels. | E86: 3000000 | F86: 25000000 | G86: 30000000 | H86: 50000000 | I86: MTEF document Accessed in relation to State budget | J86: MTEF implementation performance reviewed. | K86: Improved performance on MTEF, budget and M&E activities | L86: No of tracking reports on MTEF & MDAs performance. | M86: 01-080 | N86: MBEP, SBS, MLGA and Other relevant MDAs
D87: iv) Collect, collate and provide information on capital releases to MDAs on quarterly basis. Establish socio-economic library for MBEP | E87: 10000000 | F87: 30000000 | G87: 20000000 | H87: 22000000 | I87: Preliminary activities on social economic information completed. | J87: Capital releases by MDAs tracked. Social economic activities information available. | K87: Improved resources management. | L87: Documentation available on release by MoF; and Payment by treasury produced on quarterly basis (Yes/No). | M87: 01-081 | N87: MBEP and other relevant MDAs
C88: d. To enhance the reform of the civil service on system delivery | D88: i). Publish Civil Service Annual Report; Circulate circular letters on regular basis to regulate government policy and action as well as guidelines on policy trust | E88: 5000000 | F88: 5000000 | G88: 5000000 | H88: 5000000 | I88: Existence of circular letters issued and circulated on regular basis to guide policy trust of government | J88: Circular letters issued and circulated on regular basis to guide policy trust of government | K88: i. Civil Service and governance improved. ii. Service delivery enhanced. | L88: No of circular letters issued. | M88: 01-082 | N88: CSC, ESTAB and other relevant MDAs
D89: ii.) Compile & publish Ekiti chieftancy declaration law, furnish obas chamber, purchase office equipment /establish library for traditional institution. | E89: 150000000 | F89: 35000000 | G89: 30000000 | H89: 25000000 | I89: Chieftancy declaration law published and office equipment purchased. | J89: Chieftaincy declaration law published and traditional institution established. | K89: Chieftancy declaration law document produced and conducive environment established. | L89: i. No of chieftancy declaration law document produced. ii. No of office equipment procured. | M89: 01-083 | N89: Bureau of Chieftaincy Affairs and EKHA
D90: iii) Conduct comprehensive examinations /oral interview for selection of candidates into all cadres of civil service by appointment, promotion / placement etc. | E90: 6000000 | F90: 58000000 | G90: 64000000 | H90: 70000000 | I90: Comprehensive examination and interview conducted. | J90: Civil servant recruited & selected through competitive examination. | K90: Enhanced service delivery to the people. Reduction in the unemployment rate. | L90: No & category of appointments made into the civil service | M90: 01-084 | N90: CSC, ESTAB, ASC and relevant MDAs
C91: e. Regulate the activities of all local governments for effective and improved service delivery. | D91: i) Construct and rehabilitate perimeter fence, dilapilidated office block, laboratory, permanent office for the MW&T CSC, LGSC, LGAs and Audit etc. | E91: Cost Transfer to Infrastructure | F91: 2000000 | G91: 2000000 | H91: 2500000 | I91: Plan to construct and renovate dilapidated office block and perimeter fence put in place. | J91: Office building and perimrter fence constructed. | K91: Improved service delivery by personnel. | L91: No of new offices constructed. | M91: 01-085 | N91: LGSC, LGA Audit and other relevant MDAs.
D92: ii) Maintain LGAs/LCDAs road & revamp local government training school, equip it with modern facilities and set up a database for the personnel of the local government. | E92: 10000000 | F92: 5000000 | G92: 5000000 | H92: 5000000 | I92: Necessary approval secured for local government training school renovation and data base installation. | J92: Local government training school revamped and data base available for use. | K92: Competency of local government personnel enhanced. | L92: i. Database software installed. ii. Local govt training school revamped Yes/No. | M92: 01-086 | N92: LGSC and other relevant MDAs
C93: f. To expand the State revenue base and introduce new methodologies for generating and collecting tax and levies. | D93: i) Conduct seminars and summit for public and private business operators and professionals etc on the significance and need for prompt tax payment to the State. | E93: 15000000 | F93: 25000000 | G93: 20000000 | H93: 25000000 | I93: Summit and seminar organized for some relevant professional bodies in the State on revenue and tax matters | J93: Summit and seminar organized for some relevant professional bodies in the State on revenue and tax matters sustained. | K93: Revenue generated from professionals bodies and private business operators increased. | L93: i. No of summits and seminars organized. ii. Increase in IGR. iii. No of professional bodies that participated in seminar or summit | M93: 01-087 | N93: IRS, MBEP and other relevant MDAs.
D94: ii) Create area offices for Ekiti State Signage & Advertisement Agency; Build the capacity of all revenue and tax officers at State and LGAs for new initiatives and innovative in IGR generation and collection. | E94: 10000000 | F94: 10000000 | G94: 20000000 | H94: 20000000 | I94: Capacity of some revenue and tax officers enhanced. | J94: Capacity of revenue and tax officers enhanced and sustained. | K94: i. Improved efficiency of officers. ii. IGR for the State increased. | L94: i. No of officers whose capacity were enhanced. ii. Percentage increase in IGR on annual basis. | M94: 01-088 | N94: MBEP and other relevant MDAs.
D95: iii) Provide branded uniform/overall, essential working tools & equipment for revenue and tax officers at MDAs, LGAs and State. | E95: 42000000 | F95: 10000000 | G95: 10000000 | H95: 10000000 | I95: Approval secured for purchase of essential working tools for revenue and tax officers at State and LGA. | J95: Essential working tools provided for revenue and tax officers at State and LGA. | K95: Improved performance of revenue and tax officers enhanced. | L95: No of equipment and working tools provided. | M95: 01-089 | N95: IRS, MBEP, GAD and other relevant MDAs.
D96: iv) Introduce directional road sign to MDAs, construct & repair bill board with moral creeds, enumerate and tag it across the State and produce also road traffic signs for users. B. Tax payers census/survey for land use charge, direct assessment, building plan fees etc. | E96: 30000000 | F96: 52000000 | G96: 12000000 | H96: 5000000 | I96: Road sign and bill board erected in some places. | J96: Road sign and bill board erected in all key areas. | K96: More revenue accrue to the State government coffers. | L96: No of road sign and bill boards at different locations in the State. | M96: 01-090 | N96: IRS, Ekiti State Traffic Management Agency (EKSTMA), Ekiti State Signage & Advertisement Agency (EKSAA) and other relevant MDAs.
D97: v) Establish women & vocational skill acquisition centres to empower unskilled youths and child healthcare in 3 senatorial districts (Ikere, Ijero and ikole). | E97: 530000000 | F97: 250000000 | G97: 250000000 | H97: 250000000 | I97: No of women and vocation centres established. | J97: Additional women and vocation centres established. | K97: Poverty among youth and women reduced. | L97: i. No of skilled and acquisition centers established. ii.Mother and child health care upgraded. | M97: 01-091 | N97: GAD and other relevant MDAs.
B98: 7. Promote South West regional integration, diaspora relatishionship and coordinate state honours award & investure by Mr. Governor | C98: a. To engage Ekiti citizen in diaspora on development of the State. | D98: i. Create database and template of Ekiti youth, non-indigene and citizens in diaspora. | E98: 20000000 | F98: 50000000 | G98: 50000000 | H98: 50000000 | I98: Data base of Ekiti citizens in diaspora created. | J98: Signed MoU with diaspora stakeholders. | K98: Arrange meetings with Ekiti citizens in diaspora. | L98: No of meetings held. | M98: 01-092 | N98: Min of Regional Dev & Special Duties (MRDSP), GAD and other relevant Agency.
C99: b. To honour deserved State's indigenes at home and diaspora. | D99: Set up committee to coordinate the investiture of the awardees. | E99: 60000000 | F99: 60000000 | G99: 60000000 | H99: 60000000 | I99: State honours award committee put in place. | J99: Deserved people recommended for the award. | K99: Improved support of State indigenes at home and in diaspora recorded. | L99: No of people honoured. | M99: 01-093 | N99: MRDSP, GAD and other relevant Agency.
C100: c. To interface with federal government agencies and federal legislators representing Ekiti State on management of federal projects in the state. | D100: i) Create and manage data base on federal government projects in the State and potential for breach of peace. Have interface with MTN, AIRTEL, GLO etc. | E100: 15000000 | F100: 65000000 | G100: 65000000 | H100: 65000000 | I100: Data on federal budget and projects as it relates to the States created. | J100: State data base on federal government presence in the State established. | K100: Level of Federal government presence in the State revealed. | L100: No of federal government projects attracted to the State. | M100: 01-094 | N100: Ministry of Regional Development and Special Duties, GAD and other relevant Agency.
D101: ii) Host Governors' forum meeting; constitute committee and host peace & conflict management. | E101: 120000000 | F101: 20000000 | G101: 20000000 | H101: 20000000 | I101: Approval to host the Governors' forum meeting secured. | J101: Governor's forum meeting, peace and conflict management hosted. | K101: Engender cordial relationship between the state Governors. | L101: No of Govenors forum's meeting held. | M101: 01-095 | N101: Ministry of Regional Development and Special Duties, GAD and other relevant Agency
D102: iii) Create and manage integration drive agencies and economic clusters; Establish Ekiti State Early Warning and Early Response System(EWERS) | E102: 40000000 | F102: 50000000 | G102: 50000000 | H102: 50000000 | I102: Agencies to manage integration drive and economic clusters created. | J102: Data base for economic products of comparative advantage of each state created. | K102: Availability of effective information on economic clusters. | L102: No products of the State available for consumption. | M102: 01-096 | N102: Ministry of Regional Development and Special Duties, GAD and other relevant Agency
D103: iv) Organise town hall meetings for development across the state and diaspora. | E103: 20000000 | F103: 20000000 | G103: 20000000 | H103: 20000000 | I103: Approval for creation of a platform for socio-economic growth of the region. | J103: Platform for socio-economic growth of the region built in the State. | K103: Synergies among the States achieved. | L103: No of town hall meetings for development across South west States organized. | M103: 01-097 | N103: MRDSD, DAWN COMMISSION, GAD and other relevant Agency.
C104: d. To ease the impact of Covid-19 on the people of Ekiti State. | D104: i.) Procure palliative materials to the less priviledge in the State and severance & furniture allowance to political office holders | E104: 150000000 | F104: 1500000000 | G104: 1400000000 | H104: 1600000000 | I104: Palliative materials procured. | J104: More palliative materials procured | K104: Negative impacts and incidence of Covid-19 on people of Ekiti State reduced. | L104: i. No of Palliative materials procured. ii. Quantity of palliative materials distributed. | M104: 01-098 | N104: Political and Economic Affairs Department, MBEP & relevant MDAs.
D105: ii.) Re-introduce, maintain and sustain transport services for civil servants & students; Monitor and coordinate activities of LGF and anti-graft organization's programmes & related matters. | E105: 10000000 | F105: 56000000 | G105: 51000000 | H105: 60000000 | I105: Transport services for civil servants and student provided. | J105: Transport services for civil servants and student provided. | K105: IGR improved. | L105: No of buses available for transportation. | M105: 01-099 | N105: MRDSD and other relevant MDAs.
C106: TOTAL AMOUNT REQUESTED: GOVERNANCE | E106: 12846650000 | F106: 30650600000 | G106: 31699500000 | H106: 34934050000
C107: TOTAL AMOUNT PROPOSED: GOVERNANCE | E107: 9441965643 | F107: 9568595235 | G107: 1.170285884e+10 | H107: 1.343747511e+10
B109: PILLAR 2: AGRICULTURE & RURAL DEVELOPMENT
B110: 1 | C110: 2 | D110: 3 | E110: 5 | G110: 6 | H110: 7 | I110: 8 | J110: 9 | K110: 10 | L110: 11 | M110: 12 | N110: 13
B111: 1. Improve agricultural production and ensure food security to eradicate poverty, hunger and wastage in Ekiti State . | C111: a. To increase farmers' output per unit area through the provision of mordern agricultural technologies for massive crop production. | D111: i.) Support peasant farmers, irrigation, agric infastructure initiatives at Ero, Itapaji and other locations in the State. | E111: 150000000 | F111: 200000000 | G111: 290000000 | H111: 360000000 | I111: All year round production of agricultural crops achieved. | J111: All year round production of agricultural crops sustained. | K111: Availability of food crops production throughout the year. | L111: % increase in the food crops production. | M111: 02-001 | N111: Min of Agric and Food Security, Bureau of Rural & Community Dev (BRCD), Directorate of Farm Settlement and Peasant Farmers Development (DFSPFD)/ relevant MDAs.
D112: ii.) Aquire, survey and open more land for farm settlement and outlets (Land Bank Development (LBD) and Agricultural Land Development (ALD) | E112: 125000000 | F112: 255000000 | G112: 308200000 | H112: 425000000 | I112: Ha of land acquired and cleared. | J112: More Ha of land acquired and opened. | K112: Availability of more open land for farmers in the State. | L112: Hectares of agricultural land developed. | M112: 02-002 | N112: MAFS, DFSPFD BRCD, FAMA and other relevant MDAs.
D113: iii.) Clear land for farming activities and other projects. | E113: 3500000000 | F113: 900000000 | G113: 2000000000 | H113: 4500000000 | I113: 2,500 Ha of land cleared. | J113: Availability of more land to farmers. | K113: Increase in food production. | L113: Hectares of land Cleared. | M113: 02-003 | N113: MAFS, BRCD and other relevant MDAs.
D114: iv. Purchase and overhaul tractors and implements. | E114: 450000000 | F114: 425000000 | G114: 330000000 | H114: 235000000 | I114: New tractors procured and the damaged ones repaired. | J114: Additional tractors provided. | K114: Mechanized and commercial farming in the State encouraged. | L114: No of tractors available. | M114: 02-004 | N114: MAFS, BRCD and other relevant MDAs
D115: v. Generate survey plan for farm settlements and thematic survey on cocoa, rice and cassava. | E115: 25000000 | F115: 150000000 | G115: 150000000 | H115: 150000000 | I115: Cocoa, rice and cassava plantation surveyed. | J115: Land available for cocoa, rice and cassava production. | K115: Food production improved. | L115: Plantations of cocoa, rice and cassava surveyed. | M115: 02-005 | N115: MAFS, BRCD, DFSPFD and other relevant MDAs.
D116: vi. Produce and distribute cocoa, coffee, cashew, oil palm and other seedlings through PPP initiatives; & Engage youths & farmers in tree crops production for Good Agricultural Practices (GAP). | E116: 101100000 | F116: 149000000 | G116: 179000000 | H116: 179000000 | I116: Hybrid of cocoa, coffee, cashew and oil palm raised. | J116: More hybrid of cocoa, coffee, cashew and oil palm raised. | K116: i. IGR increased as a result of agricultural produce. | L116: No of seedlings raised and distributed. | M116: 02-006 | N116: MAFS, ADP, BRCD, DFSPFD and other relevant MDAs.
D117: vii. Upgrade, rehabilitate & construct rural access roads and bridges across agricultural zones. | E117: 2994791667 | F117: 7282000380 | G117: 7382000380 | H117: 7562000380 | I117: Rural access roads constructed. | J117: More access road available. | K117: Movement of farm produce made easy. | L117: % of rural access roads constructed. | M117: 02-007 | N117: MAFS, BRCD, Ekiti State RURAL Access and Agricultural Marketing Project (RAAMP), BELP and relevant MDAs.
D118: viii. Develop technical workshop and purchase of essential tools and equipment. | E118: 5000000 | F118: 13500000 | G118: 14800000 | H118: 14100000 | I118: Technical workshops provided. | J118: Technical workshops provided and essential tools procured. | K118: Essential farming tools available. | L118: No of workshops and tools available. | M118: 02-008 | N118: MAFS, BRCD and other relevant MDAs.
D119: ix. Encourage, train & empower women, youths (YCAD), farmers and other associations in agriculture. | E119: 10000000 | F119: 155000000 | G119: 180000000 | H119: 220000000 | I119: Farmers, youth and various association engaded and trained. | J119: More farmers, youth and various association engaged and trained. | K119: i. Over 20,000 youths engaged in commercial agriculture. ii. Numbers of registered farmers in the State increased. | L119: % increase of youth and farmer trained and empowered. | M119: 02-009 | N119: MAFS, Fountain Agric Marketing Agency (FAMA), BELP and other relevant MDAs.
D120: x. Nutrition and household food security (Unicef assisted programme) | E120: 15000000 | F120: 10000000 | G120: 15000000 | H120: 20000000 | I120: Balanced nutritional intake in household increased. | J120: Increased balanced nutritional intake in household sustained. | K120: Malnutrition reduced espeially among children and women of child bearing age. | L120: Balanced nutritional intake available, yes/no. | M120: 02-010 | N120: MAFS and other relevant MDAs.
D121: xi. Landscape, horticulture and develop environmental protection. | E121: 15000000 | F121: 10000000 | G121: 15000000 | H121: 20000000 | I121: Landscaping carried out. | J121: Landscaping and horticulture carried out. | K121: Better beautification of the environment in the State. | L121: Acre of lands available for landscaping and horticulture. | M121: 02-011 | N121: MAFS and other relevant MDAs
C122: 2. To ensure cash crop are graded and food security increased by 2024. | D122: i. Purchase of clips seals for grading produce & distribution of improved seedlings to smaller farmers. | E122: 1031000000 | F122: 5000000 | G122: 5000000 | H122: 6000000 | I122: Various types of agricultural produce are to be graded and improved seedlings are to be distributed to farmers. | J122: Clip seal and relevant equipment purchased for effective agricultural produce. | K122: Improved quantity and quality of agricultural produce. Increase in IGR. | L122: No of clip seals and essential equipment available. | M122: 02-012 | N122: MAFS and other relevant MDAs.
D123: ii. Train staff and rehabilitate produce training school, Omuo Ekiti. | E123: 13000000 | F123: 3000000 | G123: 3000000 | H123: 4000000 | I123: Produce training School renovated. | J123: Produce training School renovated and staff trained. | K123: Capacity of staff enhanced. | L123: No of staff trained and training school renovated. | M123: 02-013 | N123: MAFS and other relevant MDAs.
D124: iii. Fumigate stores, purchase and distribute agro chemical for pest control to farmers (cocoa etc) in the state. | E124: 18000000 | F124: 3000000 | G124: 3000000 | H124: 3000000 | I124: Agro Chemicals procured for pest control. | J124: Agro chemicals procured for pest control and stores fumigated across all LGAs. | K124: Crops preservation enhanced. | L124: Quantity of agro chemical available and number of stores fumigated. | M124: 02-014 | N124: MAFS and other relevant MDAs.
D125: iv. Purchase cooling van, utility vehicles and motorcycles for farming and anti-smuggling operation. | E125: 70000000 | F125: 196000000 | G125: 157000000 | H125: 133000000 | I125: Utility vehicles and motorcycles procured. | J125: Utility vehicles and motorcycles procured and distributed. | K125: Conducive environment provided for farming activities. | L125: No of utility vehicles provided. | M125: 02-015 | N125: MAFS, DFSPFD and other relevant MDAs.
D126: v. Purchase office, communication & other essential equipment for quality determination. | E126: 98000000 | F126: 1000000 | G126: 1000000 | H126: 1000000 | I126: Essential equipment for quality determination procured. | J126: Additional essential equipment for quality determination procured. | K126: Needed equipment available for quality determination. | L126: No of equipment bought for quality determination. | M126: 02-016 | N126: MAFS and other relevant MDAs.
C127: 3. Vaccination for all household animals | D127: i. Organize awareness programme on vaccination of goats, Sheep etc | E127: 5000000 | F127: 6000000 | G127: 6000000 | H127: 6000000 | I127: Awareness programmes on vaccination organised. | J127: More awareness programmes on vaccination organised. | K127: Death of household animals reduced. | L127: No of animals that received vaccine. | M127: 02-017 | N127: MAFS and other relevant MDAs.
D128: ii. Construct/renovate, cattle market, farm settlement or stead, poultry/goat village, abattoirs and veterinary hospital; Provide motorize borehole, hand pump, cassava grader across the State to improve clinical services. | E128: 150000000 | F128: 770000000 | G128: 832000000 | H128: 871000000 | I128: Animals disease controlled. | J128: Animals disease reduced & controlled. | K128: Improved standard of living and quality of animal product. | L128: % Increase increase in revenue generated from abattoir. | M128: 02-018 | N128: MAFS, DFSPFD, BRCD and other relevant MDAs.
D129: iii. Control & sustain avian influenza, swine influenza and other influenza like disease. | E129: 2000000 | F129: 2000000 | G129: 2000000 | H129: 2000000 | I129: Influenza like disease reduced. | J129: Influenza like disease reduced. | K129: Animal products and bye-products increased. | L129: % of influenza control vaccine available. | M129: 02-019 | N129: MAFS and other relevant MDAs.
D130: iv. Distribute seeds, fertilizers and extension services to farmers. | E130: 30000000 | F130: 20000000 | G130: 20000000 | H130: 20000000 | I130: Improved seeds to farmers were available. | J130: Improved seeds and fertilizers distributed | K130: Increase in farm produce | L130: Number of seeds and fertilizer distributed. | M130: 02-020 | N130: FADAMA and other relevant MDAs
D131: v. Support labour intensive agricultural infrastructure for canals, feeder roads and warehouse. | E131: 2000000 | F131: 10000000 | G131: 10000000 | H131: 10000000 | I131: Labour intensive agricultural infrastructure provided | J131: Additional labour intensive agricultural infrastructure provided | K131: Agric bussiness made easy. | L131: No of available infrastructure | M131: 02-021 | N131: FADAMA and other relevant MDAs
D132: vi. Provide agricultural assets for production & mitigating of food loss and waste. | E132: 5000000 | F132: 10000000 | G132: 10000000 | H132: 10000000 | I132: Agricultural assets provided. | J132: More agric assets provided | K132: Increase in production of MTIgating of food loss and waste. | L132: Number of agric assets provided. | M132: 02-022 | N132: FADAMA and other relevant MDAs
C133: 4. Rehabilitation of sericulture facilities | D133: i. Construct weaving hall and install imported looms | E133: 25000000 | F133: 30000000 | G133: 30000000 | H133: 30000000 | I133: Weaving hall constructed. | J133: Weaving hall constructed and looms installed. | K133: Production of silk and local fabric | L133: No of youth employment created. | M133: 02-023 | N133: MAFS and other relevant MDAs
D134: ii. Overhaul and repairs of weaving and reeling machine. | E134: 165000000 | F134: 20000000 | G134: 20000000 | H134: 20000000 | I134: Sericulture reeling machine repaired. | J134: Additional sericulture reeling machine repaired. | K134: Efficient sericulture reeling machine available. | L134: No of sericulture machine repaired. | M134: 02-024 | N134: MAFS and other relevant MDAs
D135: iii. Empower fish farmers across the State. Upgrade/renovate govt fish hatchery & pond | E135: 15000000 | F135: 20000000 | G135: 20000000 | H135: 20000000 | I135: Fish farm renovated. | J135: Fish farm renovated and fish farmers empowered. | K135: Fish farmers empowered. | L135: No of fish farmers empowered. | M135: 02-025 | N135: MAFS, Fisheries Dept. and other relevant MDAs
C136: 5. To increase the present extension agent and expose EAs to new improved agricultural technologies. | D136: i. Develop agrobusiness; Conduct of On-Farm-Adaptive Research Trials (OFAR); Air Agric Extension Support programmes on radio & television and organize Monthly Technology Review Meeting (MTRM) for Extension Agents (EAs) and Subject Matter Specialists (SMS). NG-CARES (Result Area 2) | E136: 86000000 | F136: 1074000000 | G136: 580000000 | H136: 105000000 | I136: Extension agents trained and working tools procured. | J136: More extension agents trained and working tools procured. | K136: MTRMs improved and Eas exposed to mordern agriculture technologies. | L136: i. No of extension agents trained. ii. No of meetings held and report produced. | M136: 02-026 | N136: MAFS, ADP, FADAMA and other relevant MDAs.
D137: ii Construct and renovate zonal & programme headquarter office buildings and workshops of ADP in Ikole | E137: 5000000 | F137: 30000000 | G137: 35000000 | H137: 40000000 | I137: Old office renovated. | J137: Old office renovated and new office constructed. | K137: Conducive environment enhanced. | L137: No of building renovated and constructed. | M137: 02-027 | N137: ADP, MWT MIPU and Relevant MDAs
D138: iii. Provide Government Cash Counterpart Contribution (GCCC) for donor partnership project. | E138: 74400000 | F138: 150000000 | G138: 74400000 | H138: 74400000 | I138: GCCC on agric donors’ assisted projects and programmes paid. | J138: GCCC on agric donors’ assisted projects and programmes paid. | K138: Increased agricultural production and enhanced farmers income. | L138: Amount of total counterpart fund paid on annual basis | M138: 02-028 | N138: ADP, MBEP, MAFS and other relevant MDAs
D139: iv. Conduct Agricultural Production Survey (APS), attendance at REFILs and Diagnostic Survey (DS) etc for the State. | E139: 9000000 | F139: 27000000 | G139: 29000000 | H139: 30000000 | I139: Survey carried out. | J139: Extension Agents exposed. | K139: Markets and value chain of farm produce enhanced. | L139: Survey carried out, yes/no. | M139: 02-029 | N139: MAFS, ADP and other relevant MDAs
C140: 6. To improve FAMA and FADAMA activities across LGAs in the State and that of Natural Agric payment Initiative, (NAPI) for biometric registration of farmer. | D140: i. Establish special farm produce market in all local government headquarters, purchase and store of excess farm produce through Buy Back Scheme on continuous basis. | E140: 10000000 | F140: 3563294.63 | G140: 3667514.27 | H140: 3875953.56 | I140: i. Excess farm produce procured and stored. ii. Participants of FADAMA increased across all LGAs. iii. Better access to subsidy and inputs to farmers. | J140: i. Excess farm produce procured and stored. ii. Participants of FADAMA increased across all LGAs. iii. Better access to subsidy and inputs to farmers. | K140: productivity and price stability of farm produce increased. | L140: Percentage reduction in the prices of farm produce. | M140: 02-030 | N140: MAFS, ADP, FAMA, FADAMA and other relevant MDAs
D141: ii. Organize capacity building programme for livestocks farmer and 1000 cassava processors in the 16 LGAs in the State by 2023 | E141: 10000000 | F141: 25000000 | G141: 25000000 | H141: 28000000 | I141: i. Capacity of 50 Fadama Community Association (FCA) enhaced. ii. Key major stakeholders sensitized on FADAMA III. | J141: i. Capacity of over 100 FCAs enhanced. ii. More key major stakeholders sensitized on FADAMA III. | K141: knowledge on farm enterprise improved. | L141: No of cassava processors trained across the 16 LGAs. | M141: 02-031 | N141: MBEP, Governors Office and relevant MDAs
D142: iii. Upgrade the sanitary infrastructure in markets | E142: 245000000 | F142: 150000000 | G142: 180000000 | H142: 182000000 | I142: Sanitary infrastructure in markets upgraded. | J142: Additional sanitary infrastructure in markets upgraded. | K142: Condusive and clean market environment created. | L142: Number of sanitary infrastructure upgraded. | M142: 02-032 | N142: FADAMA and other relevant MDAs
C143: 7. To provide logistics support for community mobilization, sensitization activities, infrastructural development and seamless operation in cattle grazing and ranch development. | D143: i) Organize sensitization meetings with stakeholders on agric & rural development, grazing and ranch development for diary & beef production. | E143: 30000000 | F143: 170000000 | G143: 220000000 | H143: 250000000 | I143: Sensitization meeting of stakeholders organized. | J143: Sensitization meeting of stakeholders organized and grazing reserves established. | K143: Community participation in development and peaceful co-existence improved. | L143: No of participants in rural development programmes. | M143: 02-033 | N143: MAFS RURAL DEPT, MLGCD and other relevant MDAs.
D144: ii) Update and review the existing lists of rural communities for ease empowerment. | E144: 17000000 | F144: 15000000 | G144: 10000000 | H144: 10000000 | I144: List of rural communities updated on annual basis. | J144: List of rural communities updated on annual basis. | K144: Increased participation in rural development programmes | L144: No of rural dwellers empowered. | M144: 02-034 | N144: MAFS RURAL DEPT, MLGCD, BRCD and other relevant MDAs.
C145: 8. To estabilish Ekiti State Development and Investment Promotion Agency (EKDIPA). | D145: i Showcase agricultural produce to attract local and foreign investors; Support private sector investment in agriculture (Government Collaborate with promasidor and others). | E145: 15000000 | F145: 5000000 | G145: 5000000 | H145: 7000000 | I145: Private sector agro industialists attracted to the State. | J145: More private sector agro industialists attracted to the State. | K145: Increase in agricutulture production through government partnership with private sector | L145: No of private investors available. | M145: 02-035 | N145: MAFS, ADP and relevant Stakeholders
D146: ii. Develop Special Agro-Industrial Processing Zone(SAPZ) and train Agro-services on effective handling of agro inputs. | E146: 4244563630 | F146: 1050000 | G146: 1120000 | H146: 1260000 | I146: Special agro-industrial processing zones created. | J146: More special agro-industrial processing zones created. | K146: Aid diversification of the State economy | L146: No of agro-indusries established in the State | M146: 02-036 | N146: MAFS, FAMA, EKDIPA and other relevant Agencies
D147: iii. Train Women on the establishment of backyard gardens and livestock production/Resilience Support Project | E147: 27095000 | F147: 7000000 | G147: 8000000 | H147: 10000000 | I147: 1,062 Women were trained to establish gardens and rear livestocks before the end of 2022 | J147: More Women were trained to establish gardens and rear livestocks by 2024 | K147: Women established backyard gardens for food production before the end of 2022 | L147: increased number of organic farmers | M147: 02-037 | N147: Agric services Department, ADP, Fishery dept, livestock dept, VET dept, LGA Agric dept
D148: iv. Cultivate mulberry plants for wine production. | E148: 4200000000 | F148: 70000000 | G148: 70000000 | H148: 70000000 | I148: Mulberry plants cultivated | J148: Smooth materials for wine available | K148: Increase in quantity and quality of wine produced | L148: No of smooth materials available | M148: 02-038 | N148: MAFS and other relevant MDAs
B149: TOTAL AMOUNT REQUESTED: AGRICULTURE AND RUAL DEVT. | E149: 1.79929503e+10 | F149: 1.237311367e+10 | G149: 1.322418789e+10 | H149: 1.563263633e+10
B150: TOTAL AMOUNT PROPOSED: AGRICULTURE AND RUAL DEVT. | E150: 5554097437 | F150: 5628585433 | G150: 6884034610 | H150: 7904397126
B162: PILLAR 3: HUMAN CAPITAL DEVELOPMENT
B163: SOCIAL SAFETY NET/EMPOWERMENT PROGRAMMES
B164: 1 | C164: 2 | D164: 3 | E164: 5 | G164: 6 | H164: 7 | I164: 8 | J164: 9 | K164: 10 | L164: 11 | M164: 12 | N164: 13
G165: PROJECTED COST (₦) | J165: OUTPUT | K165: EXPECTED | M165: MTSS | N165: RESPONSIBLE
B166: GOALS | C166: OBJECTIVES | D166: INITIATIVES | E166: APPROVED 2022 MTSS ESTIMATES | F166: 2023 | G166: 2024 | H166: 2025 | I166: BASE YEAR 2022 | J166: TARGET | K166: OUTCOME | L166: KPIs | M166: CODE | N166: MDAs
B168: 1.Provide Support for the Vulnerable Segment of the Society that will impact on the livelihood of the citizens through implentation of various Social Safety Nets inline with SDGs and in collaboration with the Federal Govt, WB & other DPs. | C168: a. To reduce the incidence of poverty in the State through the provision of cash and kind assistances and to also feed Pry 1 -3 pupils in the public schools. | D168: i. Build on the existing database developed in 2020 and continually update the unemployed single register. b. Provide Social Transfer for Velnurable Households. | E168: 2675662000 | F168: 2000000000 | G168: 3000000000 | H168: 2000000000 | I168: Existing database reviewed and updated. | J168: Updated database sustained and put to use. | K168: Improved welfare of the vulnerable and poor | L168: i. No of beneficiaries per annum ii. Report of the impact assessment | M168: 03-001 | N168: MBEP, EKSCDA, SDGs, MBEP, SBS and relevant MDAs.
D169: ii. Engage unemployed youth into public workfare (N Power Programme); and provide fertilizer, micro credit loan and cash assistance to support women, widows, artisans, physically challenged, unemployed youths, people in distress, chronically illed & victims of GBV etc. | E169: 400000000 | F169: 2250000000 | G169: 2470000000 | H169: 2600000000 | I169: Vulnerables and poor in the society were assisted. | J169: Additional vulnerables and poor in the society were assisted. | K169: Better livelihood and longevity for the vulnerables and poor. | L169: No of poor and vulnerable people benefiting from the micro credit. | M169: 03-002 | N169: BELP, MBEP, SBS, Job Creation and Employment Agency (JCEA), MEDA, EKSCDA, SICO and relevant MDAs.
D170: iii. Generate new data & conduct impact assessment of the social security scheme on the beneficiaries by 2024 | E170: 15000000 | F170: 413690461 | G170: 175000000 | H170: 454000000 | I170: Rate of empowerment and its benefits accessed. | J170: Various empowerment programmes implemented and sustained. | K170: Incidence of poverty greatly reduced and welfare of citizens enhanced. | L170: Reports of the impact assessment conducted. | M170: 03-003 | N170: BELP, EKSCDA, SBS, MBEP and other relevant Stakeholders.
D171: iv. Provide financial aid through loan, grant etc and enabling environment for businesses & establishment of cottage and small scale industries etc. | E171: 155000000 | F171: 630000000 | G171: 485000000 | H171: 599000000 | I171: Enabling environment and credit facilities provided. | J171: Enabling environment and more credit facilities provided. | K171: Standard of living improved and rural-urban migration reduced. | L171: No of cottage industries established. | M171: 03-004 | N171: BELP, Micro Credit Agency(MCA), EKSCDA, SICO and other relevant MDAs
D172: v. Provide financial assistance to registered artisans & associations; and temporary means of livelihood for unemployed youths. | E172: 125000000 | F172: 321309539 | G172: 100000000 | H172: 80000000 | I172: Financial assistance rendered to various categories of people and association. | J172: Financial assistance rendered to various categories of people and association sustained. | K172: Reduce incidence of poverty among artisans and unemployed. | L172: No of beneficiaries of the financial assistance and micro-credit programme. | M172: 03-005 | N172: BELP, MCA, EKSCDA and relevant MDAs.
D173: vi. Feed pry 1-3 pupils in the public schools. | E173: 100000000 | F173: 250000000 | G173: 125000000 | H173: 150000000 | I173: 30% of public pry schools fed | J173: Additional 50% of public pry schools fed | K173: Nutritional level among the pupils and rate of enrolment in the public schools increased. | L173: No of public schools pupils fed and local vendors partronised. | M173: 03-006 | N173: MBEP and other relevant MDAs.
B174: 2. Create enabling environment for women empowerment and participation in governance. | C174: a. To promote gender equality and women empowerment to maximise their potential for sustainable development | D174: i). Organize capacity building and workshop to strengthen gender focal persons in MDAs and LGAs; Implement Child Right Law, GBV Law etc & produce 3000 copies of Ekiti State Gender Based Development Policy (ESGBDP). | E174: 200000000 | F174: 10000000 | G174: 20000000 | H174: 20000000 | I174: Capacity of gender focal person in MDAs and LGAS enhanced. | J174: Capacity of more gender focal person in MDAs and LGAS enhanced and sustained. | K174: Attitude of officials toward victims of GBV improved. | L174: No of gender focal persons strengthened. | M174: 03-007 | N174: Ministry of Women Affairs and Social Dev(MWASD) and relevant MDAs.
D175: ii). Establish equal opportunities commission and sensitize relevant stakeholders on the equal opportunities laws. | E175: 7000000 | F175: 10000000 | G175: 15000000 | H175: 15000000 | I175: Equal opportunities commission established. | J175: Equal opportunities commission established and sustained. | K175: Equal opportunities for all citizens. | L175: Equal opportunities established, yes/no. | M175: 03-008 | N175: MWASD, CSOs and relevant MDAs.
D176: iii). Participate in women's national and international conferences. | E176: 10000000 | F176: 40000000 | G176: 40000000 | H176: 40000000 | I176: National and international conferences organized. | J176: National and international conferences organized. | K176: Capacity of the participants enhanced. | L176: No of participants at national and international conferences. | M176: 03-009 | N176: MWASD, CSOs and relevant MDAs.
D177: iv). Capacity building on gender development; and train also national and International desk officers and stakeholders. | E177: 15000000 | F177: 25000000 | G177: 25000000 | H177: 25000000 | I177: Gender officers and stakeholders trained | J177: More gender officers and stakeholders trained | K177: Capacity of the participants enhanced | L177: No of gender officers and stakeholders trained. | M177: 03-010 | N177: MWASD and other relevant MDAs.
C178: b. To eradicate discriminatory practices that undermine women’s development in Ekiti State by 2023 | D178: i) Provide fund as empowerment for the followings (Gender Based Violence Support Fund, Multiple Birth Trust Fund and Civil Society Fund) | E178: 20000000 | F178: 50000000 | G178: 50000000 | H178: 60000000 | I178: Fund provided to support women development. | J178: Fund provided to support women development. | K178: Tangible reduction in cases of GBV and abuse of women and girl child | L178: No of GBV victims supported | M178: 03-011 | N178: MWASD, CSO and other relevant MDAs
D179: ii) Organize annual gender summit and implement gender audit report. | E179: 50000000 | F179: 50000000 | G179: 50000000 | H179: 50000000 | I179: Gender summit conducted. | J179: Gender summit conducted and audit report produced. | K179: Enabling environment for women to thrive created. | L179: No of gender summit organized. | M179: 03-012 | N179: MWASD and relevant MDAs
D180: iii) Organize National Council Meeting on women & social development; and create women cooperative across the 16 LGAs. | E180: 10000000 | F180: 40000000 | G180: 40000000 | H180: 40000000 | I180: National Council meeting on women affairs and social development organized. | J180: Women cooperatives society across the 16 LGAs established. | K180: Economics status and livelihood of women at the grassroots enhanced. | L180: Reports of participation at regular National Council meeting and number of cooperative society established. | M180: 03-013 | N180: MWASD and other relevant MDAs.
C181: c. To improve by 50% the socio economic status of women and out of school girls in the State at all levels. | D181: i) Tour of Her Excellence to the 16 LGAs for women empowerment and training of out of school children on skills acquisition. | E181: 94838000 | F181: 265000000 | G181: 285000000 | H181: 230000000 | I181: Women across the 16 LGAs trained and acquired skills in different vocations. | J181: More women across the 16 LGAs trained and acquired skills in different vocations. | K181: Economics status and livelihood of women at the grassroots ehanced. | L181: % reduction in poverty index among women | M181: 03-014 | N181: MWASD, MEDA, BELP and relevant MDAs
C182: d. To build capacity of at least 70% of the personnel of MWASD on annual basis | D182: i). Organize capacity training workshop for staff. | E182: 40000000 | F182: 10000000 | G182: 10000000 | H182: 10000000 | I182: Capacity building workshop conducted. | J182: More officers capacity enhanced. | K182: Better service delivery enhanced. | L182: No of officers trained. | M182: 03-015 | N182: MWASD and relevant MDAs
C183: e. To improve protection, growth and development of children in Ekiti State. | D183: i. Equip secretariat crèche at Ado, renovate & furnish Erelu Adebayo children home across 16 LGAs | E183: 20000000 | F183: 80000000 | G183: 80000000 | H183: 80000000 | I183: Crèche facility procured and better facilities provided | J183: Crèche facility procured and children home renovated. | K183: Conducive environment for the children development enhanced. | L183: No of creche and chidren home renovated and equipped. | M183: 03-016 | N183: MWASD and relevant MDAs
D184: ii) Develop/print policy document & action plan for women and children survival intervention like OVC, Gender Issues Projects, CEDAW, NAPTIP, Covid-19 incident, HIV/AIDS etc. | E184: 30000000 | F184: 180000000 | G184: 280000000 | H184: 300000000 | I184: Guilding tools for OVC programme in Ekiti State developed | J184: Guilding tools for OVC programme in Ekiti State developed and implemented | K184: NAPTIP and OVC policy document made available. | L184: Data on relative no of OVC in Ekiti State generated. | M184: 03-017 | N184: MWASD, MHHS and relevant MDAs
D185: iii. Implement 6+1 OVC service and build capacity of SCRIC, NAPTIP and OVC Caregivers. | E185: 10000000 | F185: 20000000 | G185: 20000000 | H185: 20000000 | I185: Capacity of SCRIC, NAPTIP and others enhanced. | J185: Capacity of additional SCRIC, NAPTIP and others enhanced. | K185: Enhanced service delivery at combating child abuse and trafficking. | L185: No of stakeholders adequately equipped for better performance and service delivery. | M185: 03-018 | N185: MWASD and relevant MDAs
C186: d. To increase by 50% the level of children, PWDs and women participation in taking decisions on matters affecting their rights | D186: i). Conduct quarterly meeting of children parliament and organize sensitization trainings for women & PWDs to promote inclusiveness in government. | E186: 10000000 | F186: 14000000 | G186: 15000000 | H186: 16000000 | I186: Sensitize children and women on their right. | J186: Sensitize more children and women on their right. | K186: i) Children take decision on matters that affect them and right of women enhanced. | L186: No of children and women sensitized. | M186: 03-019 | N186: MWASD, ODA and relevant MDAs
D187: ii). Organize International, National and State programmes such as: Celebration of United Nations Observances & International day, Women’s day, Widows day, Cancer week, Children's day, Tolerant day etc. | E187: 25000000 | F187: 70000000 | G187: 80000000 | H187: 90000000 | I187: Local and international day celebration conducted. | J187: Local and international day celebration conducted. | K187: Sense of belongliness promoted among the participant. | L187: Local and international day celebration carried out, yes/no. | M187: 03-020 | N187: MWASD, SDGs, Min of Edu and relevant MDAs
C188: e. To implement programmes that will reduce violence against women. | D188: i) Implement programme for the elimination of violence against women with lay down guidelines & girls to show interest in Science Education | E188: 15000000 | F188: 15000000 | G188: 15000000 | H188: 15000000 | I188: Programme for elemination of violence against women conducted. | J188: Programme for elemination of violence against women conducted and sustained. | K188: Violence against women drastically reduced. | L188: No of women participated in the programme | M188: 03-021 | N188: MWASD and and relevant MDAs
D189: ii) ) Empower and provide financial support with monitoring for needy children, women, health & psycho-social challenges, indigent and brilliant girls to study science subjects in secondary schools and international adoption. | E189: 30000000 | F189: 30000000 | G189: 30000000 | H189: 30000000 | I189: Children and women with health and psycho-social challenges assisted and monitored. | J189: Additional children and women with health and psycho-social challenges assisted and monitored. | K189: No of girl in the science classes increased. | L189: No of girls studying science subject. | M189: 03-022 | N189: MWASD and relevant MDAs
B190: 3. Build future leaders through high moral development for the care of youths, waifs, strays and elderly persons with desirabilities in the state. | C190: a. To reduce by 80% crime rate among Ekiti youths by 2024 | D190: i) Organize conference of Stakeholders and conduct awareness campaign against anti- social behaviors including teenage pregnancy in schools and communities. | E190: 25000000 | F190: 25000000 | G190: 35000000 | H190: 45000000 | I190: Guidance counselors trained and functional correctional centre constructed. | J190: More guidance counselors trained and functional correctional centre constructed. | K190: Anti social behavior reduced and behavioral reformation of children in the society ensured. | L190: i. No of functional correctional centre built. ii. No of social workers trained. | M190: 03-023 | N190: MWASD, MYSD and relevant Stakeholders.
D191: ii) Provide Juvenile welfare especially for the difficult children. | E191: 5000000 | F191: 5000000 | G191: 5000000 | H191: 5000000 | I191: Children welfare enhanced. | J191: More children welfare enhanced. | K191: Better life for children established. | L191: Juvenile welfare provided, yes/no. | M191: 03-024 | N191: MWASD and relevant Stakeholders
C192: b. To reduce by 70% the incidence of broken homes in Ekiti State by 2024 | D192: i). Provide family welfare services such as grants to State family courts, neighbourhood centre, day care, centers for the elderly; and renovate four (4) Zonal family welfare offices. | E192: 25000000 | F192: 25000000 | G192: 25000000 | H192: 25000000 | I192: Family courts and neighbourhood center for the elderly established. | J192: Additional family courts and neighbourhood center for the elderly established. | K192: Incidence of broken homes in Ekiti State reduced. | L192: No of family courts and neighborhood centre for elderly established. | M192: 03-025 | N192: MWASD and relevant MDAs
D193: ii) Conduct social mobilization and campaign on good family living | E193: 10000000 | F193: 10000000 | G193: 10000000 | H193: 15000000 | I193: Campaingn on good family living conducted. | J193: Campaingn on good family living conducted. | K193: Family standard of living improved. | L193: No of family sensitized. | M193: 03-026 | N193: MWASD and relevant MDAs
D194: iii) Provide home & welfare services for displaced persons | E194: 25000000 | F194: 25000000 | G194: 5000000 | H194: 5000000 | I194: Welfare services provided. | J194: Welfare services provided. | K194: Displaced person resettled. | L194: No of resettled displaced persons. | M194: 03-027 | N194: MWASD and relevant MDAs.
C195: c. To protect less priviledge and displaced persons | D195: i). Construct model marriage and counseling registry by 2023. | E195: 50000000 | F195: 50000000 | G195: 30000000 | H195: 20000000 | I195: Marriage and counseling registry constructed | J195: Marriage and counseling registry constructed and put to use. | K195: Fruitful married life achieved. | L195: % reduction in number of divorce cases. | M195: 03-028 | N195: MWASD and relevant MDAs
D196: ii. Conduct & organize monthly keep-fit exercise; Sports competitions like international, national tournament, principals’ cup, inter local government, Ayo traditional sport etc for talent hunt; Purchase of sport equipment, utility vehicle etc. | E196: 20000000 | F196: 60000000 | G196: 20000000 | H196: 20000000 | I196: Trials and other competition conducted. | J196: Various competition and talent hunt e.t.c conducted. | K196: More talents discovered for national & international competition. | L196: No of talented sports man & woman discovered. | M196: 03-029 | N196: Ekiti State Sports Council (EKSC), MYSD and relevant MDAs
D197: iv. Conduct & review survey of persons with disabilities and other vulnerable persons in the State. Implement all policy programmes for PWDs & celeberate the International day with PWDs's/ boost parathletics and sports for the disable | E197: 90000000 | F197: 10000000 | G197: 14500000 | H197: 16000000 | I197: PWDs data base provided. | J197: More PWDs data base provided. | K197: PWDs carry out their daily activities peacefully and celebrate with colleagues happily. | L197: No of PWDs provided with devices to reduce hardship. | M197: 03-030 | N197: MWASD, ODA and relevant MDAs
C198: d. To propagate the image of the state and to rebrand Ekiti State through documentaries and public enlightment | D198: i. Print calendars, MDAs datas, lapel pins, diaries, debit/recovery note, seal up stickers and other publications; and produce flags, rebranding logo, keyholders, bags, shirt and souvenirs for the State use. | E198: 30000000 | F198: 237000000 | G198: 252000000 | H198: 262000000 | I198: Printed documents of State government made available. | J198: More documents and souvenirs made available. | K198: Government popular policies made known. | L198: No of printed and circulated publicity documents. | M198: 03-031 | N198: Government Printing Press (GPP), EKSAA, MYSD, MRDSD, MIVO, GH&P and relevant MDAs
C199: e. To comply with global broadcasting digitization switch over in line with NBC digital switch over deadline. | D199: Procure FM transmitters, generating set, broadcasting and studio equipment (camera, Tv, LED lamo, professional digital encoder, UPS, decoder, multiplexer & microwave etc); Payment of BSES broadcasting license fees. | E199: 15000000 | F199: 160000000 | G199: 145000000 | H199: 135000000 | I199: Studio & broadcasting equipment procured. | J199: Work on establishment of studio sustained and broadcasting equipment procured. | K199: Ekiti State complied with NBC directives and requirements for global digitization. | L199: No of equipment and working tools procured. | M199: 03-032 | N199: MIVO, MYSD, BSES and relevant MDAs
C200: f. To ensure printing of quality jobs for public and private sectors. | D200: i. Digitalize BSES and construct new TV/radio studio; Renovate and upgrade the Timson Security Printing Machine and also provide modern equipment for effective performance. | E200: 58000000 | F200: 1015000000 | G200: 1015000000 | H200: 1015000000 | I200: Security printing machine provided. | J200: Security printing machine provided. | K200: Printing, security and conducive environment with improved performance achieved | L200: No of modern equipment procured. | M200: 03-033 | N200: BSES, MYSD, MWT, GPP and relevant MDAs
D201: ii. Provide mobility hearing aids and working tools for PWDs | E201: 112000000 | F201: 5000000 | G201: 6000000 | H201: 7000000 | I201: Mobility hearing aid of PWDs procured. | J201: Mobility hearing aid of additional PWDs procured. | K201: PWDs condition improved. | L201: No of PWDs provided with devices. | M201: 03-034 | N201: MWASD, Office for Disability Affairs (ODA) and relevant MDAs
D202: iii. Provide monthly stipend for vulnerable Women (teenage pregnant mothers, mothers with SAM children) | E202: 24000000 | F202: 710000000 | G202: 240000000 | H202: 240000000 | I202: support for women provided | J202: support for women provided | K202: Credit support for women increased | L202: Number of beneficiaries | M202: 03-035 | N202: MBEP (Cash Transfer Office), Social Investment Coordinating Office (SICO) and relevant MDAs
D203: iv. Provide moned; widows and bread winners of child headed households for food support for five years | E203: 48000000 | F203: 550000000 | G203: 240000000 | H203: 422000000 | I203: support for aged widows provided | J203: support for aged widows provided | K203: support for aged widows improved | L203: Number of beneficiaries | M203: 03-036 | N203: MBEP (Cash Transfer Office)
D204: v. Engage unemployed youth graduate to various MDAs or Enterpreneurship Development Programme (EDP) | E204: 70000000 | F204: 100000000 | G204: 150000000 | H204: 200000000 | I204: Some unemployed youth engaged | J204: Over 500 unemployed youth were engaged | K204: Reduction in the rate of unemployment | L204: No of youth that were employed | M204: 03-037 | N204: BELP and other relevant MDAs
B205: SUB-AMOUNT REQUESTED: SSN / EMPOWERMENT PROGS. | E205: 4664500000 | F205: 9761000000 | G205: 9602500000 | H205: 9356000000
B206: SUB-AMOUNT PROPOSED: SSN / EMPOWERMENT PROGS. | E206: 1666229231 | F206: 1688575630 | G206: 2065210383 | H206: 2371319138
J208: 5
B221: HUMAN CAPITAL DEV : HEALTH AND HUMAN SERVICES
B222: 1. Deliver qualitative health care through well equipped functional system with the aim of attending to the needs of the population | C222: a. To screen for diseases of public health importance by reduction in mobidity and mortality from public health relevant on HIV, malaria e.t.c | D222: i) Conduct HTS test training/awareness & couple councelling; Procure reagents, HTS equipment, scanning machine for Specialist hospitals & consumables for diagnosis. | E222: 18000000 | F222: 50000000 | G222: 53000000 | H222: 51500000 | I222: Health equipment procured. | J222: Health equipment procured and distributed. | K222: Reduced burden of communicable and non-communicable diseases | L222: No of health equipment procured. | M222: 03-038 | N222: Min of Health & Human Services, Primary Health Care Dev Agency (PHCDA), HMB, EKSACA / relevant MDAs.
D223: ii. Provide protective wear, aprons, handwashine facilities & sanitizer etc; Upgrade health infrastructure in primary, Secondary, Staff Clinic & all other health facilities; | E223: 55000000 | F223: 5000000 | G223: 5000000 | H223: 5000000 | I223: Completion of abandoned projects and renovation of Secondry Health facilities | J223: Tertiary and Secondary Health facilities attain minimum requirments in infrastructure | K223: Access to quality and optimal infrastuecture at Secondary Health facilities | L223: No of projects renovated and completed | M223: 03-039 | N223: MHHS, HMB, PHCDA, Health Tech and relevant MDAs
C224: b. Health Promotion Social determinants of evironmental health: Improve wellbeing and safety of life through health promotion and healthy environment. | D224: i)Monthly awareness on Health Promotion activities; Enlighten the general public on preventive healthcare and access to care and life saving commodity through BCCC for safe motherhood services; Strengthen Novel Testing Srategies & Effective Refferal System & feedback mechanism; Improve maternal & perinatal death survellance and response (MPDSR). | E224: 70000000 | F224: 94000000 | G224: 81000000 | H224: 75000000 | I224: BBC materials provided and disseminated to 30% schools and communities. | J224: Adoption of National policy on health and development of adolescent and young people | K224: Public awareness on preventive healthcare increased. | L224: No of available BBC materials distributed | M224: 03-040 | N224: MHHS, PHCDA and relevant Stakeholders
D225: ii)Sensitize people on radio, Tv to improve access to an explicit package of care across a network facilities (Antenatal, Delivery etc & COVID-19, Family Planning, TB, Malaria and other infectious diseases | E225: 38000000 | F225: 455000000 | G225: 269000000 | H225: 325000000 | I225: Routine School health visits by health providers to ensure compliance with an active school clinic and qualified personnel | J225: Routine School health visits by health providers to ensure compliance with an active school clinic and qualified personnel | K225: Routine School health visits by health providers to ensure compliance with an active school clinic and qualified personnel | L225: No of health promotion campaigns & schools visited | M225: 03-041 | N225: MHHS, PHCDA, EKSDHSMA and relevant Stakeholders
C226: c. To eradicate harmful traditional practices by improving awareness on GBV, FGM and Rape | D226: Sensitize, counsel and treat rape, harmful traditional birth practices including TB, GBV and FGM etc. | E226: 43000000 | F226: 3000000 | G226: 3500000 | I226: BCC messages on rape and other GBV pratices available at 50% of facilities | J226: Advocacy meetings held with stakeholders at community level. | K226: BCCmassages on rape and other GBV pratices available at 100% of facilities | L226: Decrease rate of GBV | M226: 03-042 | N226: MHHS, MHHS, PHCDA and other relevant MDAs.
... 240 more rows

Sheet Sheet2
A1: 2.0 2022 - 2024 MEDIUM TERM SECTORAL STRATEGY BY BUDGET. | B1: 2.0 2023 - 2025 MEDIUM TERM SECTORAL STRATEGY BY TRADITIONAL CLASSIFICATION
A2: S/N | B2: BUDGET SECTOR | C2: NO | D2: MTSS SECTORS | E2: 2022 APPROVED MTSS ALLOCATIONS | F2: 2022 APPROVED % ALLOCATION | G2: 2023 MDAs PROJECTED ESTIMATES | H2: 2023 MTSS PROPOSED ALLOCATIONS | I2: % MTSS ALLOCATION
A3: 1 | B3: 2 | C3: 3 | D3: 4 | E3: 5 | F3: 6 | G3: 7 | H3: 8 | I3: 9
A4: 1 | B4: Administrative | C4: i | D4: Governance: (Security and Public Service) | E4: 9441965643 | F4: 17 | G4: 30665600000 | H4: 9568595235 | I4: 17
A5: Sub - Total | E5: =SUM(E4:E4) -> 9441965643 | F5: =SUM(F4:F4) -> 17 | G5: 30665600000 | H5: =SUM(H4:H4) -> 9568595235 | I5: =SUM(I4:I4) -> 17
A6: 2 | C6: ii | D6: Agriculture and Rural Development | E6: =E17*F6/100 -> 5554097437 | F6: 10 | G6: 1.237311367e+10 | H6: =H17*I6/100 -> 5628585433 | I6: 10
B7: Economic | C7: iii | D7: Infrastructure & Industrialization | E7: 2.221638975e+10 | F7: 40 | G7: 45682000000 | H7: 22514341730 | I7: 40
C8: iv | D8: Arts, Culture and Tourism. | E8: 83114615.57 | F8: 1.5 | G8: 1895000000 | H8: 844287814.9 | I8: 1.5
A9: Sub - Total | E9: =SUM(E6:E8) -> 2.78536018e+10 | F9: =SUM(F6:F8) -> 51.5 | G9: =SUM(G6:G8) -> 5.995011367e+10 | H9: =SUM(H6:H8) -> 2.898721498e+10 | I9: =I6+I7+I8 -> 51.5
A10: 3 | C10: v | D10: Social Safety Nets and Empowerment Programmes | E10: =E17*F10/100 -> 1666229231 | F10: 3 | G10: 9761000000 | H10: =H17*I10/100 -> 1688575630 | I10: 3
B11: Social Services | C11: vi | D11: Health Care Services | E11: =E17*F11/100 -> 5276392565 | F11: 9.5 | G11: 1.261453589e+10 | H11: =H17*I11/100 -> 5347156161 | I11: 9.5
C12: vii | D12: Kowledge Economy | E12: =E17*F12/100 -> 5998425232 | F12: 10.8 | G12: 17309500000 | H12: =H17*I12/100 -> 6078872267 | I12: 10.8
D13: Youth Dev and Job Creation | E13: =E17*F13/100 -> 1388524359 | F13: 2.5 | G13: 7216309539 | H13: =H17*I13/100 -> 1407146358 | I13: 2.5
A14: Sub - Total | E14: =SUM(E10:E13) -> 1.432957139e+10 | F14: =SUM(F10:F13) -> 25.8 | G14: =SUM(G10:G13) -> 4.690134543e+10 | H14: =SUM(H10:H13) -> 1.452175042e+10 | I14: =SUM(I10:I13) -> 25.8
A15: 4 | B15: Environmental Services | C15: viii | D15: Emergency and Sanitation | E15: =E17*F15/100 -> 3165835539 | F15: 5.7 | G15: 7389500000 | H15: =H17*I15/100 -> 3208293697 | I15: 5.7
A16: Sub - Total | E16: =SUM(E15:E15) -> 3165835539 | F16: =SUM(F15:F15) -> 5.7 | G16: 7389500000 | H16: =SUM(H15:H15) -> 3208293697 | I16: =SUM(I15:I15) -> 5.7
A17: GRAND TOTAL | C17: MTSS TOTAL ALLOCATION | E17: 55540974371 | F17: 100 | G17: =G5+G9+G14+G16 -> 1.449065591e+11 | H17: 5.628585433e+10 | I17: =I5+I9+I14+I16 -> 100
G20: V

Sheet Sheet3
B1: 3.0 2023 - 2025 MEDIUM TERM SECTORAL ALLOCATION BY 6-PILLARS.
A2: S/N | B2: PILLAR SECTOR | C2: NO | D2: MTSS SECTORS | E2: 2022 APPROVED MTSS ALLOCATIONS | F2: 2022 APPROVED % ALLOCATION | G2: 2023 MDAs PROJECTED ESTIMATES | H2: 2023 MTSS PROPOSED ALLOCATIONS | I2: % MTSS ALLOCATION
A3: 1 | B3: 2 | C3: 3 | D3: 4 | E3: 5 | F3: 6 | G3: 7 | H3: 8 | I3: 9
B4: GOVERNANCE | C4: i | D4: Governance: (Security and Public Service) | E4: =E19*F4/100 -> 9441965643 | F4: 17 | G4: 30665600000 | H4: 9568595235 | I4: 17
A5: Sub - Total | E5: =SUM(E4:E4) -> 9441965643 | F5: =SUM(F4:F4) -> 17 | G5: =SUM(G4:G4) -> 30665600000 | H5: 9568595235 | I5: =SUM(I4:I4) -> 17
A6: 2 | B6: Agriculture and Rural Development | C6: i | D6: Agriculture and Rural Development | E6: =E19*F6/100 -> 5554097437 | F6: 10 | G6: 1.237311367e+10 | H6: 5628585433 | I6: 10
A7: Sub - Total | E7: 5554097437 | F7: =SUM(F6:F6) -> 10 | G7: =SUM(G6:G6) -> 1.237311367e+10 | H7: 5628585433 | I7: =SUM(I6) -> 10
A8: 3 | B8: HUMAN CAPITAL | C8: i | D8: Social Safety Nets and Empowerment Programmes | E8: =E19*F8/100 -> 1666229231 | F8: 3 | G8: 9761000000 | H8: 1688575630 | I8: 3
C9: ii | D9: Health Care Services | E9: =E19*F9/100 -> 5276392565 | F9: 9.5 | G9: 1.261453589e+10 | H9: 5347156161 | I9: 9.5
C10: iii | D10: Knowledge Economy | E10: =E19*F10/100 -> 5998425232 | F10: 10.8 | G10: 17309500000 | H10: 6078872267 | I10: 10.8
A11: Sub - Total | E11: =E8+E9+E10 -> 1.294104703e+10 | F11: =SUM(F8:F10) -> 23.3 | G11: =SUM(G8:G10) -> 3.968503589e+10 | H11: 1.311460406e+10 | I11: =SUM(I8:I10) -> 23.3
A12: 4 | B12: Youth Dev & Job Creation | C12: i | D12: Youth Dev. & Job Creation | E12: =E19*F12/100 -> 1388524359 | F12: 2.5 | G12: 7216309539 | H12: 1407146358 | I12: 2.5
A13: Sub - Total | E13: =E19*F13/100 -> 1388524359 | F13: =SUM(F12:F12) -> 2.5 | G13: =SUM(G12:G12) -> 7216309539 | H13: 1407146358 | I13: =SUM(I12:I12) -> 2.5
B14: Infratructure and Industrialization | C14: i | D14: Lands, SMEs, Infrastructure & Indutrial Development | E14: =E19*F14/100 -> 2.221638975e+10 | F14: 40 | G14: 45682000000 | H14: 2.251434173e+10 | I14: 40
A15: 5 | C15: ii | D15: Emergency, Sanitation and Environmental Development | E15: =E19*F15/100 -> 3165835539 | F15: 5.7 | G15: 7389500000 | H15: 3208293697 | I15: 5.7
B16: Sub-Total | E16: =E19*F16/100 -> 2.538222529e+10 | F16: =SUM(F14:F15) -> 45.7 | G16: =SUM(G14:G15) -> 53071500000 | H16: 2.572263543e+10 | I16: =SUM(I14:I15) -> 45.7
A17: 6 | B17: Arts, Culture & Tourism | C17: i | D17: Information, Tourism, Arts and Culture | E17: =E19*F17/100 -> 833114615.6 | F17: 1.5 | G17: 1895000000 | H17: 844287814.9 | I17: 1.5
A18: Sub - Total | E18: =E19*F18/100 -> 833114615.6 | F18: =SUM(F17:F17) -> 1.5 | G18: =SUM(G17:G17) -> 1895000000 | H18: 844287814.9 | I18: =SUM(I17:I17) -> 1.5
A19: GRAND TOTAL | B19: MTSS TOTAL ALLOCATION | E19: 55540974371 | F19: =F5+F7+F11+F13+F16+F18 -> 100 | G19: =G5+G7+G11+G13+G16+G18 -> 1.449065591e+11 | H19: 5.628585433e+10 | I19: =I5+I7+I11+I13+I16+I18 -> 100
E22: vi

Sheet Sheet4
B1: 4.0 2023 - 2025 MEDIUM TERM SECTORAL ALLOCATION IN LINE WITH EKSDP 11 CLUSTERS
A2: S/N | B2: PILLAR SECTOR | C2: NO | D2: CLUSTERS | E2: 2021 - 2050 EKSDP COST ESTIMATE ( $) | F2: 2021 - 2050 EKSDP COST ESTIMATE (₦) | G2: 2023 MDAs PROJECTED ESTIMATES | H2: 2023 MTSS PROPOSED ALLOCATIONS | I2: % MTSS ALLOCATION
A3: A | B3: B | C3: C | D3: D | F3: E | G3: G | H3: H | I3: I
A4: 1 | B4: Governance | C4: i | D4: Administrative | E4: 750000000 | F4: =E4*436 -> 327000000000 | G4: 1.623472941e+10 | H4: 5065726889 | I4: 9
C5: ii | D5: Economic | E5: 900000000 | F5: 392400000000 | G5: 1.443087059e+10 | H5: 4502868346 | I5: 8
A6: Sub - Total | E6: =SUM(E4:E5) -> 1650000000 | F6: 719400000000 | G6: =SUM(G4:G5) -> 30665600000 | H6: 9568595235 | I6: =I4+I5 -> 17
A7: 2 | B7: Agriculture and Rural Development | C7: i | D7: Agriculture and Food Security | E7: 950000000 | F7: 414200000000 | G7: 1.237311367e+10 | H7: 5628585433 | I7: 10
A8: Sub - Total | E8: 950000000 | F8: 414200000000 | G8: =SUM(G7:G7) -> 1.237311367e+10 | H8: 5628585433 | I8: =SUM(I7) -> 10
A9: 3 | B9: HUMAN CAPITAL DEVELOPMENT | C9: i | D9: Social Investments | E9: 800000000 | F9: 348800000000 | G9: 3406440849 | H9: 1125717087 | I9: 2
C10: ii | D10: Health and Human Services | E10: 880000000 | F10: 383680000000 | G10: 1.618059403e+10 | H10: 5347156161 | I10: 9.5
C11: iii | D11: Knowledge Economy | E11: 1025000000 | F11: 446900000000 | G11: 1.839478058e+10 | H11: 6078872267 | I11: 10.8
C12: iv | D12: Women and Gender Equality | E12: 915000000 | F12: 398940000000 | G12: 1703220424 | H12: 562858543.3 | I12: 1
A13: Sub - Total | E13: =SUM(E9:E12) -> 3620000000 | F13: 1578320000000 | G13: =SUM(G9:G12) -> 3.968503589e+10 | H13: 1.311460406e+10 | I13: =SUM(I9:I12) -> 23.3
A14: 4 | B14: Youth Dev & Job Creation | C14: i | D14: Youth Dev. & Education | E14: 1140000000 | F14: 497040000000 | G14: 7216309539 | H14: 1407146358 | I14: 2.5
A15: Sub - Total | E15: 1140000000 | F15: 497040000000 | G15: =SUM(G14:G14) -> 7216309539 | H15: 1407146358 | I15: =SUM(I14:I14) -> 2.5
A16: 5 | B16: Infratructure and Industrialization | C16: i | D16: Infrastructure & Industrial Development | E16: 1095000000 | F16: 477420000000 | G16: 3.135515317e+10 | H16: 1.519718067e+10 | I16: 27
C17: ii | D17: Lands, Physical Planning and Environment | E17: 900000000 | F17: 392400000000 | G17: 1.242593107e+10 | H17: 6022586413 | I17: 10.7
C18: iii | D18: Trade, Investment and Industry | E18: 670000000 | F18: 292120000000 | G18: 9290415755 | H18: 4502868346 | I18: 8
B19: Sub-Total | E19: =SUM(E16:E18) -> 2665000000 | F19: 1161940000000 | G19: =SUM(G16:G18) -> 53071500000 | H19: 2.572263543e+10 | I19: =I16+I17+I18 -> 45.7
A20: 6 | B20: Arts, Culture & Tourism | C20: i | D20: Information, Tourism, Arts and Culture | E20: 150000000 | F20: 65400000000 | G20: 1895000000 | H20: 844287814.9 | I20: 1.5
A21: Sub - Total | E21: 150000000 | F21: 65400000000 | G21: =SUM(G20:G20) -> 1895000000 | H21: 844287814.9 | I21: =SUM(I20:I20) -> 1.5
A22: GRAND TOTAL | B22: MTSS TOTAL ALLOCATION | E22: =E6+E8+E13+E15+E19+E21 -> 10175000000 | F22: =F6+F8+F13+F15+F19+F21 -> 4436300000000 | G22: =G6+G8+G13+G15+G19+G21 -> 1.449065591e+11 | H22: 5.628585433e+10 | I22: =I6+I8+I13+I15+I19+I21 -> 100
A24: EKSDP: Ekiti State Development Plan
F25: VII
